Department Family,Entity,Date,Expense Type,Expense Area,Supplier,Transaction Number,Amount,Description
Ministry of Justice,MoJ HQ,31/Mar/2015 ,265000-IT & Telecommunications,NZ900-Finance & Corporate Services,ACTICA CONSULTING LTD,6895,"95,300.00 ",Costs relating to the Common Platform Programme
Ministry of Justice,MoJ HQ,31/Mar/2015 ,265000-IT & Telecommunications,NZ900-Finance & Corporate Services,ACTICA CONSULTING LTD,6895,"19,060.00 ",Costs relating to the Common Platform Programme
Ministry of Justice,MoJ HQ,19-MAR-2015,223701-External Solicitors Fees (Advice),LM100-Transforming Rehabilitation,ALLEN & OVERY LLP,1001112840,"47,456.00 ",Legal Consultancy for the Transforming Rehabilitation programme
Ministry of Justice,MoJ HQ,16-MAR-2015,223701-External Solicitors Fees (Advice),LM100-Transforming Rehabilitation,ALLEN & OVERY LLP,1001112835,"245,432.00 ",Legal Consultancy for the Transforming Rehabilitation programme
Ministry of Justice,MoJ HQ,42094,223000-Other Expenditure,NZ401-Finance Group Feeder,ALLEN LANE CONSULTANCY LTD,1158641,"328,500.00 ",Fees for February 2015 Managed Accounting Service core contract and call off charges
Ministry of Justice,MoJ HQ,42094,223000-Other Expenditure,NZ401-Finance Group Feeder,ALLEN LANE CONSULTANCY LTD,1158641,"65,700.00 ",Fees for February 2015 Managed Accounting Service core contract and call off charges
Ministry of Justice,MoJ HQ,42094,223000-Other Expenditure,NZ401-Finance Group Feeder,ALLEN LANE CONSULTANCY LTD,1158641,"541,425.00 ",Fees for February 2015 Managed Accounting Service core contract and call off charges
Ministry of Justice,MoJ HQ,42094,223000-Other Expenditure,NZ401-Finance Group Feeder,ALLEN LANE CONSULTANCY LTD,1158641,"108,285.00 ",Fees for February 2015 Managed Accounting Service core contract and call off charges
Ministry of Justice,MoJ HQ,42094,223000-Other Expenditure,NZ401-Finance Group Feeder,ALLEN LANE CONSULTANCY LTD,6896,"529,835.00 ",Fees for February 2015 Managed Accounting Service core contract and call off charges
Ministry of Justice,MoJ HQ,42094,223000-Other Expenditure,NZ401-Finance Group Feeder,ALLEN LANE CONSULTANCY LTD,6896,"105,967.00 ",Fees for February 2015 Managed Accounting Service core contract and call off charges
Ministry of Justice,MoJ HQ,42079,223000-Other Expenditure,QY300-Fleet Car Mgmt,ALPHABET (GB) LTD,1157140,0.05 ,Provision of leased vehicles � finance and service charges - March 2015
Ministry of Justice,MoJ HQ,42079,223000-Other Expenditure,QY300-Fleet Car Mgmt,ALPHABET (GB) LTD,1157140,"47,943.50 ",Provision of leased vehicles � finance and service charges - March 2015
Ministry of Justice,MoJ HQ,42079,223000-Other Expenditure,QY300-Fleet Car Mgmt,ALPHABET (GB) LTD,1157140,"9,588.70 ",Provision of leased vehicles � finance and service charges - March 2015
Ministry of Justice,MoJ HQ,02/Mar/2015 ,222003-CIS Labour TFM Estates,NZ406-Strategic Estates Feeder,AMEY COMMUNITY LTD,1155973,"6,701.93 ",HQ TFM Contract - Soft Variable Services - Management
Ministry of Justice,MoJ HQ,02/Mar/2015 ,222003-CIS Labour TFM Estates,NZ406-Strategic Estates Feeder,AMEY COMMUNITY LTD,1155973,"30,690.65 ",HQ TFM Contract - Hard Variable Services - M&E Repair & Maintenance
Ministry of Justice,MoJ HQ,02/Mar/2015 ,222003-CIS Labour TFM Estates,NZ406-Strategic Estates Feeder,AMEY COMMUNITY LTD,1155973,"31,064.16 ",HQ TFM Contract - Hard Variable Services - Internal Repair & Maintenance
Ministry of Justice,MoJ HQ,31/Mar/2015 ,222003-CIS Labour TFM Estates,NZ406-Strategic Estates Feeder,AMEY COMMUNITY LTD,1158642,311.95 ,HQ TFM Contract - Soft Fixed Services - Catering; Vending
Ministry of Justice,MoJ HQ,31/Mar/2015 ,222003-CIS Labour TFM Estates,NZ406-Strategic Estates Feeder,AMEY COMMUNITY LTD,1158642,"63,940.90 ",HQ TFM Contract - Soft Fixed Services - Cleaning
Ministry of Justice,MoJ HQ,31/Mar/2015 ,222003-CIS Labour TFM Estates,NZ406-Strategic Estates Feeder,AMEY COMMUNITY LTD,1158642,"5,227.56 ",HQ TFM Contract - Soft Fixed Services - Waste Disposal
Ministry of Justice,MoJ HQ,31/Mar/2015 ,222003-CIS Labour TFM Estates,NZ406-Strategic Estates Feeder,AMEY COMMUNITY LTD,1158642,"21,925.70 ",HQ TFM Contract - Hard Fixed Services - Management
Ministry of Justice,MoJ HQ,31/Mar/2015 ,222003-CIS Labour TFM Estates,NZ406-Strategic Estates Feeder,AMEY COMMUNITY LTD,1158642,"7,458.71 ",HQ TFM Contract - Soft Fixed Services - Management
Ministry of Justice,MoJ HQ,31/Mar/2015 ,222003-CIS Labour TFM Estates,NZ406-Strategic Estates Feeder,AMEY COMMUNITY LTD,1158642,"47,655.31 ",HQ TFM Contract - Hard Fixed Services - M&E Repair & Maintenance
Ministry of Justice,MoJ HQ,31/Mar/2015 ,222003-CIS Labour TFM Estates,NZ406-Strategic Estates Feeder,AMEY COMMUNITY LTD,1158642,"12,826.38 ",HQ TFM Contract - Hard Fixed Services - Internal Repair & Maintenance
Ministry of Justice,MoJ HQ,31/Mar/2015 ,222003-CIS Labour TFM Estates,NZ406-Strategic Estates Feeder,AMEY COMMUNITY LTD,1158642,208.67 ,HQ TFM Contract - Hard Fixed Services - Grounds Maintenance
Ministry of Justice,MoJ HQ,31/Mar/2015 ,222003-CIS Labour TFM Estates,NZ406-Strategic Estates Feeder,AMEY COMMUNITY LTD,1158642,377.34 ,HQ TFM Contract - Soft Fixed Services - Pest & Vermin Control - Building Operation
Ministry of Justice,MoJ HQ,09/Mar/2015 ,222003-CIS Labour TFM Estates,NZ406-Strategic Estates Feeder,AMEY COMMUNITY LTD,1156448,316.24 ,HQ TFM Contract - Soft Fixed Services - Catering; Vending
Ministry of Justice,MoJ HQ,09/Mar/2015 ,222003-CIS Labour TFM Estates,NZ406-Strategic Estates Feeder,AMEY COMMUNITY LTD,1156448,"64,258.12 ",HQ TFM Contract - Soft Fixed Services - Cleaning
Ministry of Justice,MoJ HQ,09/Mar/2015 ,222003-CIS Labour TFM Estates,NZ406-Strategic Estates Feeder,AMEY COMMUNITY LTD,1156448,"5,248.30 ",HQ TFM Contract - Soft Fixed Services - Waste Disposal
Ministry of Justice,MoJ HQ,09/Mar/2015 ,222003-CIS Labour TFM Estates,NZ406-Strategic Estates Feeder,AMEY COMMUNITY LTD,1156448,"32,059.39 ",HQ TFM Contract - Hard Fixed Services - Management
Ministry of Justice,MoJ HQ,09/Mar/2015 ,222003-CIS Labour TFM Estates,NZ406-Strategic Estates Feeder,AMEY COMMUNITY LTD,1156448,"7,465.17 ",HQ TFM Contract - Soft Fixed Services - Management
Ministry of Justice,MoJ HQ,09/Mar/2015 ,222003-CIS Labour TFM Estates,NZ406-Strategic Estates Feeder,AMEY COMMUNITY LTD,1156448,"47,606.94 ",HQ TFM Contract - Hard Fixed Services - M&E Repair & Maintenance
Ministry of Justice,MoJ HQ,09/Mar/2015 ,222003-CIS Labour TFM Estates,NZ406-Strategic Estates Feeder,AMEY COMMUNITY LTD,1156448,"12,866.99 ",HQ TFM Contract - Hard Fixed Services - Internal Repair & Maintenance
Ministry of Justice,MoJ HQ,09/Mar/2015 ,222003-CIS Labour TFM Estates,NZ406-Strategic Estates Feeder,AMEY COMMUNITY LTD,1156448,208.67 ,HQ TFM Contract - Hard Fixed Services - Grounds Maintenance
Ministry of Justice,MoJ HQ,09/Mar/2015 ,222003-CIS Labour TFM Estates,NZ406-Strategic Estates Feeder,AMEY COMMUNITY LTD,1156448,385.88 ,HQ TFM Contract - Soft Fixed Services - Pest & Vermin Control - Building Operation
Ministry of Justice,MoJ HQ,31/Mar/2015 ,222001-Maintenance,NZ406-Strategic Estates Feeder,AMEY COMMUNITY LTD,1158642,"128,489.93 ",Emergency light works to the main floor areas [HQ-14-15-1045]
Ministry of Justice,MoJ HQ,26/Mar/2015 ,265000-IT & Telecommunications,NZ900-Finance & Corporate Services,ARK DATA CENTRES LTD,1158363,"189,900.04 ",Datacentre Costs for March 2015 
Ministry of Justice,MoJ HQ,30/Mar/2015 ,265000-IT & Telecommunications,NX900-MOJ Shared Services,ASE CONSULTING LTD,1158584,"60,000.00 ",Assessment of online services for the Evolve programme with a view to modernising the business performance
Ministry of Justice,MoJ HQ,02/Mar/2015 ,265000-IT & Telecommunications,RG999-CFLAP Accumulator,ATOS IT SERVICES UK LTD,1155977,242.09 ,Provision of IT peripherals and individually ordered software and equipment
Ministry of Justice,MoJ HQ,02/Mar/2015 ,265000-IT & Telecommunications,MF600-Directorate of Judicial Offices,ATOS IT SERVICES UK LTD,1155977,"1,856.57 ",Provision of IT peripherals and individually ordered software and equipment
Ministry of Justice,MoJ HQ,02/Mar/2015 ,265000-IT & Telecommunications,LZ600-Transforming Justice,ATOS IT SERVICES UK LTD,1155977,257.50 ,Provision of IT peripherals and individually ordered software and equipment
Ministry of Justice,MoJ HQ,02/Mar/2015 ,265000-IT & Telecommunications,LZ600-Transforming Justice,ATOS IT SERVICES UK LTD,1155977,257.50 ,Provision of IT peripherals and individually ordered software and equipment
Ministry of Justice,MoJ HQ,02/Mar/2015 ,265000-IT & Telecommunications,LZ600-Transforming Justice,ATOS IT SERVICES UK LTD,1155977,25.78 ,Provision of IT peripherals and individually ordered software and equipment
Ministry of Justice,MoJ HQ,02/Mar/2015 ,265000-IT & Telecommunications,LZ600-Transforming Justice,ATOS IT SERVICES UK LTD,1155977,25.23 ,Provision of IT peripherals and individually ordered software and equipment
Ministry of Justice,MoJ HQ,02/Mar/2015 ,265000-IT & Telecommunications,LZ600-Transforming Justice,ATOS IT SERVICES UK LTD,1155977,25.78 ,Provision of IT peripherals and individually ordered software and equipment
Ministry of Justice,MoJ HQ,02/Mar/2015 ,265000-IT & Telecommunications,LZ600-Transforming Justice,ATOS IT SERVICES UK LTD,1155977,25.78 ,Provision of IT peripherals and individually ordered software and equipment
Ministry of Justice,MoJ HQ,02/Mar/2015 ,265000-IT & Telecommunications,LZ600-Transforming Justice,ATOS IT SERVICES UK LTD,1155977,25.78 ,Provision of IT peripherals and individually ordered software and equipment
Ministry of Justice,MoJ HQ,02/Mar/2015 ,265000-IT & Telecommunications,LZ600-Transforming Justice,ATOS IT SERVICES UK LTD,1155977,25.78 ,Provision of IT peripherals and individually ordered software and equipment
Ministry of Justice,MoJ HQ,02/Mar/2015 ,265000-IT & Telecommunications,LZ600-Transforming Justice,ATOS IT SERVICES UK LTD,1155977,25.78 ,Provision of IT peripherals and individually ordered software and equipment
Ministry of Justice,MoJ HQ,02/Mar/2015 ,265000-IT & Telecommunications,LZ600-Transforming Justice,ATOS IT SERVICES UK LTD,1155977,25.78 ,Provision of IT peripherals and individually ordered software and equipment
Ministry of Justice,MoJ HQ,02/Mar/2015 ,265000-IT & Telecommunications,LZ600-Transforming Justice,ATOS IT SERVICES UK LTD,1155977,25.78 ,Provision of IT peripherals and individually ordered software and equipment
Ministry of Justice,MoJ HQ,02/Mar/2015 ,265000-IT & Telecommunications,LZ600-Transforming Justice,ATOS IT SERVICES UK LTD,1155977,46.00 ,Provision of IT peripherals and individually ordered software and equipment
Ministry of Justice,MoJ HQ,02/Mar/2015 ,265000-IT & Telecommunications,MF600-Directorate of Judicial Offices,ATOS IT SERVICES UK LTD,1155977,113.16 ,Provision of IT peripherals and individually ordered software and equipment
Ministry of Justice,MoJ HQ,02/Mar/2015 ,265000-IT & Telecommunications,MF600-Directorate of Judicial Offices,ATOS IT SERVICES UK LTD,1155977,164.00 ,Provision of IT peripherals and individually ordered software and equipment
Ministry of Justice,MoJ HQ,02/Mar/2015 ,265000-IT & Telecommunications,MF600-Directorate of Judicial Offices,ATOS IT SERVICES UK LTD,1155977,17.16 ,Provision of IT peripherals and individually ordered software and equipment
Ministry of Justice,MoJ HQ,02/Mar/2015 ,265000-IT & Telecommunications,MF600-Directorate of Judicial Offices,ATOS IT SERVICES UK LTD,1155977,123.76 ,Provision of IT peripherals and individually ordered software and equipment
Ministry of Justice,MoJ HQ,02/Mar/2015 ,265000-IT & Telecommunications,MF600-Directorate of Judicial Offices,ATOS IT SERVICES UK LTD,1155977,25.78 ,Provision of IT peripherals and individually ordered software and equipment
Ministry of Justice,MoJ HQ,02/Mar/2015 ,265000-IT & Telecommunications,MF600-Directorate of Judicial Offices,ATOS IT SERVICES UK LTD,1155977,25.78 ,Provision of IT peripherals and individually ordered software and equipment
Ministry of Justice,MoJ HQ,02/Mar/2015 ,265000-IT & Telecommunications,MF600-Directorate of Judicial Offices,ATOS IT SERVICES UK LTD,1155977,25.78 ,Provision of IT peripherals and individually ordered software and equipment
Ministry of Justice,MoJ HQ,02/Mar/2015 ,265000-IT & Telecommunications,MF600-Directorate of Judicial Offices,ATOS IT SERVICES UK LTD,1155977,25.00 ,Provision of IT peripherals and individually ordered software and equipment
Ministry of Justice,MoJ HQ,02/Mar/2015 ,265000-IT & Telecommunications,MF600-Directorate of Judicial Offices,ATOS IT SERVICES UK LTD,1155977,25.23 ,Provision of IT peripherals and individually ordered software and equipment
Ministry of Justice,MoJ HQ,02/Mar/2015 ,265000-IT & Telecommunications,MF600-Directorate of Judicial Offices,ATOS IT SERVICES UK LTD,1155977,106.12 ,Provision of IT peripherals and individually ordered software and equipment
Ministry of Justice,MoJ HQ,02/Mar/2015 ,265000-IT & Telecommunications,MF600-Directorate of Judicial Offices,ATOS IT SERVICES UK LTD,1155977,25.23 ,Provision of IT peripherals and individually ordered software and equipment
Ministry of Justice,MoJ HQ,02/Mar/2015 ,265000-IT & Telecommunications,MF600-Directorate of Judicial Offices,ATOS IT SERVICES UK LTD,1155977,78.26 ,Provision of IT peripherals and individually ordered software and equipment
Ministry of Justice,MoJ HQ,02/Mar/2015 ,265000-IT & Telecommunications,MF600-Directorate of Judicial Offices,ATOS IT SERVICES UK LTD,1155977,25.78 ,Provision of IT peripherals and individually ordered software and equipment
Ministry of Justice,MoJ HQ,02/Mar/2015 ,265000-IT & Telecommunications,MF600-Directorate of Judicial Offices,ATOS IT SERVICES UK LTD,1155977,25.78 ,Provision of IT peripherals and individually ordered software and equipment
Ministry of Justice,MoJ HQ,02/Mar/2015 ,265000-IT & Telecommunications,MF600-Directorate of Judicial Offices,ATOS IT SERVICES UK LTD,1155977,25.78 ,Provision of IT peripherals and individually ordered software and equipment
Ministry of Justice,MoJ HQ,02/Mar/2015 ,265000-IT & Telecommunications,MF600-Directorate of Judicial Offices,ATOS IT SERVICES UK LTD,1155977,25.78 ,Provision of IT peripherals and individually ordered software and equipment
Ministry of Justice,MoJ HQ,02/Mar/2015 ,265000-IT & Telecommunications,MF600-Directorate of Judicial Offices,ATOS IT SERVICES UK LTD,1155977,25.78 ,Provision of IT peripherals and individually ordered software and equipment
Ministry of Justice,MoJ HQ,02/Mar/2015 ,265000-IT & Telecommunications,MF600-Directorate of Judicial Offices,ATOS IT SERVICES UK LTD,1155977,25.78 ,Provision of IT peripherals and individually ordered software and equipment
Ministry of Justice,MoJ HQ,02/Mar/2015 ,265000-IT & Telecommunications,MF600-Directorate of Judicial Offices,ATOS IT SERVICES UK LTD,1155977,25.78 ,Provision of IT peripherals and individually ordered software and equipment
Ministry of Justice,MoJ HQ,02/Mar/2015 ,265000-IT & Telecommunications,MF600-Directorate of Judicial Offices,ATOS IT SERVICES UK LTD,1155977,46.00 ,Provision of IT peripherals and individually ordered software and equipment
Ministry of Justice,MoJ HQ,02/Mar/2015 ,265000-IT & Telecommunications,OZ501-HRD Feeder,ATOS IT SERVICES UK LTD,1155977,25.78 ,Provision of IT peripherals and individually ordered software and equipment
Ministry of Justice,MoJ HQ,02/Mar/2015 ,265000-IT & Telecommunications,OZ501-HRD Feeder,ATOS IT SERVICES UK LTD,1155977,46.00 ,Provision of IT peripherals and individually ordered software and equipment
Ministry of Justice,MoJ HQ,02/Mar/2015 ,265000-IT & Telecommunications,OZ501-HRD Feeder,ATOS IT SERVICES UK LTD,1155977,11.62 ,Provision of IT peripherals and individually ordered software and equipment
Ministry of Justice,MoJ HQ,02/Mar/2015 ,265000-IT & Telecommunications,RF999-JPG - DGs Office,ATOS IT SERVICES UK LTD,1155977,82.78 ,Provision of IT peripherals and individually ordered software and equipment
Ministry of Justice,MoJ HQ,02/Mar/2015 ,265000-IT & Telecommunications,RG999-CFLAP Accumulator,ATOS IT SERVICES UK LTD,1155977,51.56 ,Provision of IT peripherals and individually ordered software and equipment
Ministry of Justice,MoJ HQ,02/Mar/2015 ,265000-IT & Telecommunications,RJ999-JPG - International,ATOS IT SERVICES UK LTD,1155977,164.00 ,Provision of IT peripherals and individually ordered software and equipment
Ministry of Justice,MoJ HQ,02/Mar/2015 ,265000-IT & Telecommunications,RJ999-JPG - International,ATOS IT SERVICES UK LTD,1155977,46.00 ,Provision of IT peripherals and individually ordered software and equipment
Ministry of Justice,MoJ HQ,02/Mar/2015 ,265000-IT & Telecommunications,RJ999-JPG - International,ATOS IT SERVICES UK LTD,1155977,111.45 ,Provision of IT peripherals and individually ordered software and equipment
Ministry of Justice,MoJ HQ,02/Mar/2015 ,265000-IT & Telecommunications,RJ999-JPG - International,ATOS IT SERVICES UK LTD,1155977,25.78 ,Provision of IT peripherals and individually ordered software and equipment
Ministry of Justice,MoJ HQ,02/Mar/2015 ,265000-IT & Telecommunications,RJ999-JPG - International,ATOS IT SERVICES UK LTD,1155977,25.78 ,Provision of IT peripherals and individually ordered software and equipment
Ministry of Justice,MoJ HQ,02/Mar/2015 ,265000-IT & Telecommunications,RJ999-JPG - International,ATOS IT SERVICES UK LTD,1155977,25.78 ,Provision of IT peripherals and individually ordered software and equipment
Ministry of Justice,MoJ HQ,02/Mar/2015 ,265000-IT & Telecommunications,RJ999-JPG - International,ATOS IT SERVICES UK LTD,1155977,50.90 ,Provision of IT peripherals and individually ordered software and equipment
Ministry of Justice,MoJ HQ,02/Mar/2015 ,265000-IT & Telecommunications,RJ999-JPG - International,ATOS IT SERVICES UK LTD,1155977,82.78 ,Provision of IT peripherals and individually ordered software and equipment
Ministry of Justice,MoJ HQ,02/Mar/2015 ,265000-IT & Telecommunications,RJ999-JPG - International,ATOS IT SERVICES UK LTD,1155977,25.78 ,Provision of IT peripherals and individually ordered software and equipment
Ministry of Justice,MoJ HQ,02/Mar/2015 ,265000-IT & Telecommunications,RJ999-JPG - International,ATOS IT SERVICES UK LTD,1155977,25.78 ,Provision of IT peripherals and individually ordered software and equipment
Ministry of Justice,MoJ HQ,02/Mar/2015 ,265000-IT & Telecommunications,RJ999-JPG - International,ATOS IT SERVICES UK LTD,1155977,50.90 ,Provision of IT peripherals and individually ordered software and equipment
Ministry of Justice,MoJ HQ,02/Mar/2015 ,265000-IT & Telecommunications,RJ999-JPG - International,ATOS IT SERVICES UK LTD,1155977,50.90 ,Provision of IT peripherals and individually ordered software and equipment
Ministry of Justice,MoJ HQ,02/Mar/2015 ,265000-IT & Telecommunications,RJ999-JPG - International,ATOS IT SERVICES UK LTD,1155977,46.00 ,Provision of IT peripherals and individually ordered software and equipment
Ministry of Justice,MoJ HQ,02/Mar/2015 ,265000-IT & Telecommunications,RJ999-JPG - International,ATOS IT SERVICES UK LTD,1155977,50.90 ,Provision of IT peripherals and individually ordered software and equipment
Ministry of Justice,MoJ HQ,02/Mar/2015 ,265000-IT & Telecommunications,RZ500-Arms Length Bodies (JPG),ATOS IT SERVICES UK LTD,1155977,46.00 ,Provision of IT peripherals and individually ordered software and equipment
Ministry of Justice,MoJ HQ,02/Mar/2015 ,265000-IT & Telecommunications,RZ500-Arms Length Bodies (JPG),ATOS IT SERVICES UK LTD,1155977,82.78 ,Provision of IT peripherals and individually ordered software and equipment
Ministry of Justice,MoJ HQ,02/Mar/2015 ,265000-IT & Telecommunications,RZ500-Arms Length Bodies (JPG),ATOS IT SERVICES UK LTD,1155977,82.78 ,Provision of IT peripherals and individually ordered software and equipment
Ministry of Justice,MoJ HQ,02/Mar/2015 ,265000-IT & Telecommunications,OZ501-HRD Feeder,ATOS IT SERVICES UK LTD,1155977,328.00 ,Provision of IT peripherals and individually ordered software and equipment
Ministry of Justice,MoJ HQ,02/Mar/2015 ,265000-IT & Telecommunications,LZ600-Transforming Justice,ATOS IT SERVICES UK LTD,1155977,25.78 ,Contract for provision of hosting services for justice.gov.uk website
Ministry of Justice,MoJ HQ,02/Mar/2015 ,265000-IT & Telecommunications,NZ900-Finance & Corporate Services,ATOS IT SERVICES UK LTD,1155977,847.86 ,Provision of IT Peripherals and individually ordered software and equipment
Ministry of Justice,MoJ HQ,02/Mar/2015 ,265000-IT & Telecommunications,NZ900-Finance & Corporate Services,ATOS IT SERVICES UK LTD,1155977,847.86 ,Provision of IT Peripherals and individually ordered software and equipment
Ministry of Justice,MoJ HQ,02/Mar/2015 ,265000-IT & Telecommunications,NZ900-Finance & Corporate Services,ATOS IT SERVICES UK LTD,1155977,25.78 ,Provision of IT Peripherals and individually ordered software and equipment
Ministry of Justice,MoJ HQ,02/Mar/2015 ,265000-IT & Telecommunications,NZ900-Finance & Corporate Services,ATOS IT SERVICES UK LTD,1155977,25.78 ,Provision of IT Peripherals and individually ordered software and equipment
Ministry of Justice,MoJ HQ,02/Mar/2015 ,265000-IT & Telecommunications,NZ900-Finance & Corporate Services,ATOS IT SERVICES UK LTD,1155977,"1,820.70 ",Provision of IT Peripherals and individually ordered software and equipment
Ministry of Justice,MoJ HQ,02/Mar/2015 ,265000-IT & Telecommunications,NZ406-Strategic Estates Feeder,ATOS IT SERVICES UK LTD,1155977,50.37 ,Provision of IT Peripherals and individually ordered software and equipment
Ministry of Justice,MoJ HQ,02/Mar/2015 ,265000-IT & Telecommunications,NZ406-Strategic Estates Feeder,ATOS IT SERVICES UK LTD,1155977,24.25 ,Provision of IT Peripherals and individually ordered software and equipment
Ministry of Justice,MoJ HQ,02/Mar/2015 ,265000-IT & Telecommunications,NZ406-Strategic Estates Feeder,ATOS IT SERVICES UK LTD,1155977,11.62 ,Provision of IT Peripherals and individually ordered software and equipment
Ministry of Justice,MoJ HQ,02/Mar/2015 ,265000-IT & Telecommunications,NX900-MOJ Shared Services,ATOS IT SERVICES UK LTD,1155977,11.17 ,Provision of IT Peripherals and individually ordered software and equipment
Ministry of Justice,MoJ HQ,02/Mar/2015 ,265000-IT & Telecommunications,NX900-MOJ Shared Services,ATOS IT SERVICES UK LTD,1155977,164.00 ,Provision of IT Peripherals and individually ordered software and equipment
Ministry of Justice,MoJ HQ,02/Mar/2015 ,265000-IT & Telecommunications,NX900-MOJ Shared Services,ATOS IT SERVICES UK LTD,1155977,164.00 ,Provision of IT Peripherals and individually ordered software and equipment
Ministry of Justice,MoJ HQ,02/Mar/2015 ,265000-IT & Telecommunications,NX900-MOJ Shared Services,ATOS IT SERVICES UK LTD,1155977,46.00 ,Provision of IT Peripherals and individually ordered software and equipment
Ministry of Justice,MoJ HQ,02/Mar/2015 ,265000-IT & Telecommunications,NX900-MOJ Shared Services,ATOS IT SERVICES UK LTD,1155977,46.00 ,Provision of IT Peripherals and individually ordered software and equipment
Ministry of Justice,MoJ HQ,02/Mar/2015 ,265000-IT & Telecommunications,NX900-MOJ Shared Services,ATOS IT SERVICES UK LTD,1155977,82.78 ,Provision of IT Peripherals and individually ordered software and equipment
Ministry of Justice,MoJ HQ,02/Mar/2015 ,265000-IT & Telecommunications,NX900-MOJ Shared Services,ATOS IT SERVICES UK LTD,1155977,82.78 ,Provision of IT Peripherals and individually ordered software and equipment
Ministry of Justice,MoJ HQ,02/Mar/2015 ,265000-IT & Telecommunications,OZ501-HRD Feeder,ATOS IT SERVICES UK LTD,1155977,82.78 ,Provision of IT Peripherals and individually ordered software and equipment
Ministry of Justice,MoJ HQ,02/Mar/2015 ,265000-IT & Telecommunications,OZ501-HRD Feeder,ATOS IT SERVICES UK LTD,1155977,11.62 ,Provision of IT Peripherals and individually ordered software and equipment
Ministry of Justice,MoJ HQ,02/Mar/2015 ,265000-IT & Telecommunications,NZ900-Finance & Corporate Services,ATOS IT SERVICES UK LTD,1155977,5.00 ,Provision of IT Peripherals and individually ordered software and equipment
Ministry of Justice,MoJ HQ,02/Mar/2015 ,265000-IT & Telecommunications,NZ900-Finance & Corporate Services,ATOS IT SERVICES UK LTD,1155977,258.33 ,Provision of IT Peripherals and individually ordered software and equipment
Ministry of Justice,MoJ HQ,02/Mar/2015 ,265000-IT & Telecommunications,NZ900-Finance & Corporate Services,ATOS IT SERVICES UK LTD,1155977,25.78 ,Provision of IT Peripherals and individually ordered software and equipment
Ministry of Justice,MoJ HQ,02/Mar/2015 ,265000-IT & Telecommunications,NZ900-Finance & Corporate Services,ATOS IT SERVICES UK LTD,1155977,25.78 ,Provision of IT Peripherals and individually ordered software and equipment
Ministry of Justice,MoJ HQ,02/Mar/2015 ,265000-IT & Telecommunications,NZ900-Finance & Corporate Services,ATOS IT SERVICES UK LTD,1155977,25.78 ,Provision of IT Peripherals and individually ordered software and equipment
Ministry of Justice,MoJ HQ,02/Mar/2015 ,265000-IT & Telecommunications,NZ900-Finance & Corporate Services,ATOS IT SERVICES UK LTD,1155977,11.62 ,Provision of IT Peripherals and individually ordered software and equipment
Ministry of Justice,MoJ HQ,30/Mar/2015 ,265000-IT & Telecommunications,NZ900-Finance & Corporate Services,ATOS IT SERVICES UK LTD,1158585,"24,612.62 ",Monthly Ongoing ATOS Telephony costs
Ministry of Justice,MoJ HQ,30/Mar/2015 ,265000-IT & Telecommunications,NZ900-Finance & Corporate Services,ATOS IT SERVICES UK LTD,1158585,"4,922.52 ",Monthly Ongoing ATOS Telephony costs 
Ministry of Justice,MoJ HQ,30/Mar/2015 ,265000-IT & Telecommunications,NZ900-Finance & Corporate Services,ATOS IT SERVICES UK LTD,1158585,"25,743.74 ",Monthly Ongoing ATOS Telephony costs
Ministry of Justice,MoJ HQ,30/Mar/2015 ,265000-IT & Telecommunications,NZ900-Finance & Corporate Services,ATOS IT SERVICES UK LTD,1158585,"5,148.75 ",Monthly Ongoing ATOS Telephony costs 
Ministry of Justice,MoJ HQ,30/Mar/2015 ,265000-IT & Telecommunications,NZ900-Finance & Corporate Services,ATOS IT SERVICES UK LTD,1158585,"25,786.21 ",Monthly Ongoing ATOS Network Services costs
Ministry of Justice,MoJ HQ,02/Mar/2015 ,265000-IT & Telecommunications,NZ900-Finance & Corporate Services,ATOS IT SERVICES UK LTD,1155977,168.02 ,Provision of IT Peripherals and individually ordered software and equipment
Ministry of Justice,MoJ HQ,02/Mar/2015 ,265000-IT & Telecommunications,NZ900-Finance & Corporate Services,ATOS IT SERVICES UK LTD,1155977,168.02 ,Provision of IT Peripherals and individually ordered software and equipment
Ministry of Justice,MoJ HQ,02/Mar/2015 ,265000-IT & Telecommunications,NZ900-Finance & Corporate Services,ATOS IT SERVICES UK LTD,1155977,25.78 ,Provision of IT Peripherals and individually ordered software and equipment
Ministry of Justice,MoJ HQ,02/Mar/2015 ,265000-IT & Telecommunications,NZ900-Finance & Corporate Services,ATOS IT SERVICES UK LTD,1155977,25.78 ,Provision of IT Peripherals and individually ordered software and equipment
Ministry of Justice,MoJ HQ,02/Mar/2015 ,265000-IT & Telecommunications,NZ900-Finance & Corporate Services,ATOS IT SERVICES UK LTD,1155977,25.78 ,Provision of IT Peripherals and individually ordered software and equipment
Ministry of Justice,MoJ HQ,02/Mar/2015 ,265000-IT & Telecommunications,NZ900-Finance & Corporate Services,ATOS IT SERVICES UK LTD,1155977,25.78 ,Provision of IT Peripherals and individually ordered software and equipment
Ministry of Justice,MoJ HQ,02/Mar/2015 ,265000-IT & Telecommunications,NZ900-Finance & Corporate Services,ATOS IT SERVICES UK LTD,1155977,25.78 ,Provision of IT Peripherals and individually ordered software and equipment
Ministry of Justice,MoJ HQ,02/Mar/2015 ,265000-IT & Telecommunications,NZ900-Finance & Corporate Services,ATOS IT SERVICES UK LTD,1155977,"1,398.30 ",One-off charge for Power down service
Ministry of Justice,MoJ HQ,02/Mar/2015 ,265000-IT & Telecommunications,NZ900-Finance & Corporate Services,ATOS IT SERVICES UK LTD,1155977,"1,398.30 ",One-off charge for Power down service
Ministry of Justice,MoJ HQ,02/Mar/2015 ,265000-IT & Telecommunications,NZ900-Finance & Corporate Services,ATOS IT SERVICES UK LTD,1155977,859.37 ,One-off charge for Power down service
Ministry of Justice,MoJ HQ,02/Mar/2015 ,265000-IT & Telecommunications,NZ900-Finance & Corporate Services,ATOS IT SERVICES UK LTD,1155977,859.37 ,One-off charge for Power down service
Ministry of Justice,MoJ HQ,02/Mar/2015 ,265000-IT & Telecommunications,NZ900-Finance & Corporate Services,ATOS IT SERVICES UK LTD,1155977,"1,398.30 ",One-off charge for Power down service
Ministry of Justice,MoJ HQ,02/Mar/2015 ,265000-IT & Telecommunications,NZ900-Finance & Corporate Services,ATOS IT SERVICES UK LTD,1155977,859.37 ,One-off charge for Power down service
Ministry of Justice,MoJ HQ,02/Mar/2015 ,265000-IT & Telecommunications,NZ900-Finance & Corporate Services,ATOS IT SERVICES UK LTD,1155977,"1,589.73 ",One-off charge for Power down service
Ministry of Justice,MoJ HQ,02/Mar/2015 ,265000-IT & Telecommunications,NZ900-Finance & Corporate Services,ATOS IT SERVICES UK LTD,1155977,859.37 ,One-off charge for Power down service
Ministry of Justice,MoJ HQ,02/Mar/2015 ,265000-IT & Telecommunications,NZ900-Finance & Corporate Services,ATOS IT SERVICES UK LTD,1155977,"1,398.30 ",One-off charge for Power down service
Ministry of Justice,MoJ HQ,02/Mar/2015 ,265000-IT & Telecommunications,NZ900-Finance & Corporate Services,ATOS IT SERVICES UK LTD,1155977,859.37 ,One-off charge for Power down service
Ministry of Justice,MoJ HQ,02/Mar/2015 ,265000-IT & Telecommunications,NZ900-Finance & Corporate Services,ATOS IT SERVICES UK LTD,1155977,"1,589.73 ",One-off charge for Power down service
Ministry of Justice,MoJ HQ,02/Mar/2015 ,265000-IT & Telecommunications,NZ900-Finance & Corporate Services,ATOS IT SERVICES UK LTD,1155977,859.37 ,One-off charge for Power down service
Ministry of Justice,MoJ HQ,02/Mar/2015 ,265000-IT & Telecommunications,NZ900-Finance & Corporate Services,ATOS IT SERVICES UK LTD,1155977,82.78 ,Provision of IT Peripherals and individually ordered software and equipment
Ministry of Justice,MoJ HQ,02/Mar/2015 ,265000-IT & Telecommunications,NZ900-Finance & Corporate Services,ATOS IT SERVICES UK LTD,1155977,859.37 ,One-off charge for Power down service
Ministry of Justice,MoJ HQ,02/Mar/2015 ,265000-IT & Telecommunications,NZ900-Finance & Corporate Services,ATOS IT SERVICES UK LTD,1155977,"1,398.30 ",One-off charge for Power down service
Ministry of Justice,MoJ HQ,02/Mar/2015 ,265000-IT & Telecommunications,NZ900-Finance & Corporate Services,ATOS IT SERVICES UK LTD,1155977,859.37 ,One-off charge for Power down service
Ministry of Justice,MoJ HQ,02/Mar/2015 ,265000-IT & Telecommunications,NZ900-Finance & Corporate Services,ATOS IT SERVICES UK LTD,1155977,859.37 ,One-off charge for Power down service
Ministry of Justice,MoJ HQ,02/Mar/2015 ,265000-IT & Telecommunications,NZ900-Finance & Corporate Services,ATOS IT SERVICES UK LTD,1155977,859.37 ,One-off charge for Power down service
Ministry of Justice,MoJ HQ,02/Mar/2015 ,265000-IT & Telecommunications,NZ900-Finance & Corporate Services,ATOS IT SERVICES UK LTD,1155977,265.63 ,Provision of IT Peripherals and individually ordered software and equipment
Ministry of Justice,MoJ HQ,02/Mar/2015 ,265000-IT & Telecommunications,NZ900-Finance & Corporate Services,ATOS IT SERVICES UK LTD,1155977,381.33 ,Provision of IT Peripherals and individually ordered software and equipment
Ministry of Justice,MoJ HQ,02/Mar/2015 ,265000-IT & Telecommunications,NZ900-Finance & Corporate Services,ATOS IT SERVICES UK LTD,1155977,859.37 ,One-off charge for Power down service
Ministry of Justice,MoJ HQ,02/Mar/2015 ,265000-IT & Telecommunications,NZ900-Finance & Corporate Services,ATOS IT SERVICES UK LTD,1155977,859.37 ,One-off charge for Power down service
Ministry of Justice,MoJ HQ,02/Mar/2015 ,265000-IT & Telecommunications,NZ900-Finance & Corporate Services,ATOS IT SERVICES UK LTD,1155977,859.37 ,One-off charge for Power down service
Ministry of Justice,MoJ HQ,02/Mar/2015 ,265000-IT & Telecommunications,NZ900-Finance & Corporate Services,ATOS IT SERVICES UK LTD,1155977,859.37 ,One-off charge for Power down service
Ministry of Justice,MoJ HQ,30/Mar/2015 ,265000-IT & Telecommunications,NZ900-Finance & Corporate Services,ATOS IT SERVICES UK LTD,1158585,"59,089.82 ",Monthly Ongoing ATOS General IT costs
Ministry of Justice,MoJ HQ,30/Mar/2015 ,265000-IT & Telecommunications,NZ900-Finance & Corporate Services,ATOS IT SERVICES UK LTD,1158585,"70,825.97 ","Monthly Ongoing ATOS Applications, Maintenance & Support costs"
Ministry of Justice,MoJ HQ,31/Mar/2015 ,265000-IT & Telecommunications,NZ900-Finance & Corporate Services,ATOS IT SERVICES UK LTD,1158643,"128,151.06 ",Monthly Ongoing ATOS General IT costs
Ministry of Justice,MoJ HQ,31/Mar/2015 ,265000-IT & Telecommunications,NZ900-Finance & Corporate Services,ATOS IT SERVICES UK LTD,1158643,"132,873.42 ",Monthly Ongoing ATOS Hosting costs
Ministry of Justice,MoJ HQ,31/Mar/2015 ,265000-IT & Telecommunications,NZ900-Finance & Corporate Services,ATOS IT SERVICES UK LTD,1158643,"159,580.00 ",Monthly Ongoing ATOS Laptop costs
Ministry of Justice,MoJ HQ,26/Mar/2015 ,265000-IT & Telecommunications,NZ900-Finance & Corporate Services,ATOS IT SERVICES UK LTD,1158366,"538,899.00 ",Monthly Ongoing ATOS System Integration and Management  costs
Ministry of Justice,MoJ HQ,30/Mar/2015 ,265000-IT & Telecommunications,NZ900-Finance & Corporate Services,ATOS IT SERVICES UK LTD,1158585,"538,899.00 ",Monthly Ongoing ATOS System Integration and Management  costs
Ministry of Justice,MoJ HQ,31/Mar/2015 ,265000-IT & Telecommunications,NZ900-Finance & Corporate Services,ATOS IT SERVICES UK LTD,1158643,"634,095.79 ",Monthly Ongoing ATOS Desktop costs
Ministry of Justice,MoJ HQ,31/Mar/2015 ,265000-IT & Telecommunications,NZ900-Finance & Corporate Services,ATOS IT SERVICES UK LTD,1158643,"939,965.35 ",Monthly Ongoing ATOS Hosting costs
Ministry of Justice,MoJ HQ,31/Mar/2015 ,265000-IT & Telecommunications,NZ900-Finance & Corporate Services,ATOS IT SERVICES UK LTD,1158643,"1,353,642.38 ",Monthly Ongoing ATOS Network Services costs
Ministry of Justice,MoJ HQ,02/Mar/2015 ,265000-IT & Telecommunications,NZ900-Finance & Corporate Services,ATOS IT SERVICES UK LTD,1155977,11.16 ,Provision of IT Peripherals and individually ordered software and equipment
Ministry of Justice,MoJ HQ,02/Mar/2015 ,265000-IT & Telecommunications,NZ900-Finance & Corporate Services,ATOS IT SERVICES UK LTD,1155977,257.80 ,New IPT Mobility account with voicemail account 1-10 Accounts
Ministry of Justice,MoJ HQ,02/Mar/2015 ,265000-IT & Telecommunications,NZ900-Finance & Corporate Services,ATOS IT SERVICES UK LTD,1155977,11.62 ,Provision of IT Peripherals and individually ordered software and equipment
Ministry of Justice,MoJ HQ,02/Mar/2015 ,265000-IT & Telecommunications,NZ900-Finance & Corporate Services,ATOS IT SERVICES UK LTD,1155977,11.62 ,Provision of IT Peripherals and individually ordered software and equipment
Ministry of Justice,MoJ HQ,26/Mar/2015 ,265000-IT & Telecommunications,NZ900-Finance & Corporate Services,ATOS IT SERVICES UK LTD,1158366,"87,915.07 ",Exit and Transition costs from Legacy Infrastructure contracts
Ministry of Justice,MoJ HQ,31/Mar/2015 ,265000-IT & Telecommunications,NZ900-Finance & Corporate Services,ATOS IT SERVICES UK LTD,1158643,"91,284.59 ",Exit and Transition costs from Legacy Infrastructure contracts
Ministry of Justice,MoJ HQ,02/Mar/2015 ,265000-IT & Telecommunications,NZ900-Finance & Corporate Services,ATOS IT SERVICES UK LTD,1155977,25.23 ,Provision of IT Peripherals and individually ordered software and equipment
Ministry of Justice,MoJ HQ,02/Mar/2015 ,265000-IT & Telecommunications,NZ900-Finance & Corporate Services,ATOS IT SERVICES UK LTD,1155977,30.30 ,Provision of IT Peripherals and individually ordered software and equipment
Ministry of Justice,MoJ HQ,02/Mar/2015 ,265000-IT & Telecommunications,NZ900-Finance & Corporate Services,ATOS IT SERVICES UK LTD,1155977,60.34 ,Provision of IT Peripherals and individually ordered software and equipment
Ministry of Justice,MoJ HQ,02/Mar/2015 ,265000-IT & Telecommunications,NZ900-Finance & Corporate Services,ATOS IT SERVICES UK LTD,1155977,282.62 ,IT peripherals/individual ordered software and equipment
Ministry of Justice,MoJ HQ,02/Mar/2015 ,265000-IT & Telecommunications,NZ900-Finance & Corporate Services,ATOS IT SERVICES UK LTD,1155977,205.63 ,Provision of IT Peripherals and individually ordered software and equipment
Ministry of Justice,MoJ HQ,02/Mar/2015 ,265000-IT & Telecommunications,NZ900-Finance & Corporate Services,ATOS IT SERVICES UK LTD,1155977,258.33 ,Provision of IT Peripherals and individually ordered software and equipment
Ministry of Justice,MoJ HQ,02/Mar/2015 ,265000-IT & Telecommunications,NZ900-Finance & Corporate Services,ATOS IT SERVICES UK LTD,1155977,350.20 ,IT peripherals/individual ordered software and equipment
Ministry of Justice,MoJ HQ,02/Mar/2015 ,265000-IT & Telecommunications,NZ900-Finance & Corporate Services,ATOS IT SERVICES UK LTD,1155977,25.78 ,Provision of IT Peripherals and individually ordered software and equipment
Ministry of Justice,MoJ HQ,02/Mar/2015 ,265000-IT & Telecommunications,NZ900-Finance & Corporate Services,ATOS IT SERVICES UK LTD,1155977,25.78 ,Provision of IT Peripherals and individually ordered software and equipment
Ministry of Justice,MoJ HQ,02/Mar/2015 ,265000-IT & Telecommunications,NZ900-Finance & Corporate Services,ATOS IT SERVICES UK LTD,1155977,46.00 ,Provision of IT Peripherals and individually ordered software and equipment
Ministry of Justice,MoJ HQ,02/Mar/2015 ,265000-IT & Telecommunications,NZ900-Finance & Corporate Services,ATOS IT SERVICES UK LTD,1155977,25.78 ,Provision of IT Peripherals and individually ordered software and equipment
Ministry of Justice,MoJ HQ,02/Mar/2015 ,265000-IT & Telecommunications,NZ900-Finance & Corporate Services,ATOS IT SERVICES UK LTD,1155977,51.56 ,Provision of IT Peripherals and individually ordered software and equipment
Ministry of Justice,MoJ HQ,02/Mar/2015 ,265000-IT & Telecommunications,NZ900-Finance & Corporate Services,ATOS IT SERVICES UK LTD,1155977,46.00 ,Provision of IT Peripherals and individually ordered software and equipment
Ministry of Justice,MoJ HQ,02/Mar/2015 ,265000-IT & Telecommunications,NZ900-Finance & Corporate Services,ATOS IT SERVICES UK LTD,1155977,51.56 ,Provision of IT Peripherals and individually ordered software and equipment
Ministry of Justice,MoJ HQ,02/Mar/2015 ,265000-IT & Telecommunications,NZ900-Finance & Corporate Services,ATOS IT SERVICES UK LTD,1155977,175.10 ,Provision of IT Peripherals and individually ordered software and equipment
Ministry of Justice,MoJ HQ,02/Mar/2015 ,265000-IT & Telecommunications,NZ900-Finance & Corporate Services,ATOS IT SERVICES UK LTD,1155977,103.12 ,Provision of IT Peripherals and individually ordered software and equipment
Ministry of Justice,MoJ HQ,02/Mar/2015 ,265000-IT & Telecommunications,NZ900-Finance & Corporate Services,ATOS IT SERVICES UK LTD,1155977,25.78 ,Provision of IT Peripherals and individually ordered software and equipment
Ministry of Justice,MoJ HQ,02/Mar/2015 ,265000-IT & Telecommunications,NZ900-Finance & Corporate Services,ATOS IT SERVICES UK LTD,1155977,25.78 ,Provision of IT Peripherals and individually ordered software and equipment
Ministry of Justice,MoJ HQ,02/Mar/2015 ,265000-IT & Telecommunications,NZ900-Finance & Corporate Services,ATOS IT SERVICES UK LTD,1155977,25.78 ,Provision of IT Peripherals and individually ordered software and equipment
Ministry of Justice,MoJ HQ,02/Mar/2015 ,265000-IT & Telecommunications,NZ900-Finance & Corporate Services,ATOS IT SERVICES UK LTD,1155977,25.78 ,Provision of IT Peripherals and individually ordered software and equipment
Ministry of Justice,MoJ HQ,02/Mar/2015 ,265000-IT & Telecommunications,NZ900-Finance & Corporate Services,ATOS IT SERVICES UK LTD,1155977,11.62 ,Provision of IT Peripherals and individually ordered software and equipment
Ministry of Justice,MoJ HQ,02/Mar/2015 ,265000-IT & Telecommunications,NZ900-Finance & Corporate Services,ATOS IT SERVICES UK LTD,1155977,11.62 ,Provision of IT Peripherals and individually ordered software and equipment
Ministry of Justice,MoJ HQ,02/Mar/2015 ,265000-IT & Telecommunications,NZ900-Finance & Corporate Services,ATOS IT SERVICES UK LTD,1155977,82.78 ,Provision of IT Peripherals and individually ordered software and equipment
Ministry of Justice,MoJ HQ,02/Mar/2015 ,265000-IT & Telecommunications,NZ900-Finance & Corporate Services,ATOS IT SERVICES UK LTD,1155977,82.78 ,Provision of IT Peripherals and individually ordered software and equipment
Ministry of Justice,MoJ HQ,02/Mar/2015 ,265000-IT & Telecommunications,NZ900-Finance & Corporate Services,ATOS IT SERVICES UK LTD,1155977,11.62 ,Provision of IT Peripherals and individually ordered software and equipment
Ministry of Justice,MoJ HQ,02/Mar/2015 ,265000-IT & Telecommunications,NZ900-Finance & Corporate Services,ATOS IT SERVICES UK LTD,1155977,25.23 ,Provision of IT Peripherals and individually ordered software and equipment
Ministry of Justice,MoJ HQ,02/Mar/2015 ,265000-IT & Telecommunications,NZ900-Finance & Corporate Services,ATOS IT SERVICES UK LTD,1155977,66.86 ,Provision of IT Peripherals and individually ordered software and equipment
Ministry of Justice,MoJ HQ,02/Mar/2015 ,265000-IT & Telecommunications,NZ900-Finance & Corporate Services,ATOS IT SERVICES UK LTD,1155977,"1,398.30 ",One-off charge for Power down service
Ministry of Justice,MoJ HQ,02/Mar/2015 ,265000-IT & Telecommunications,NZ900-Finance & Corporate Services,ATOS IT SERVICES UK LTD,1155977,25.23 ,Provision of IT Peripherals and individually ordered software and equipment
Ministry of Justice,MoJ HQ,02/Mar/2015 ,265000-IT & Telecommunications,NZ900-Finance & Corporate Services,ATOS IT SERVICES UK LTD,1155977,25.78 ,IT peripherals/individual ordered software and equipment
Ministry of Justice,MoJ HQ,02/Mar/2015 ,265000-IT & Telecommunications,NZ900-Finance & Corporate Services,ATOS IT SERVICES UK LTD,1155977,25.78 ,IT peripherals/individual ordered software and equipment
Ministry of Justice,MoJ HQ,02/Mar/2015 ,265000-IT & Telecommunications,NZ900-Finance & Corporate Services,ATOS IT SERVICES UK LTD,1155977,5.00 ,IT peripherals/individual ordered software and equipment
Ministry of Justice,MoJ HQ,02/Mar/2015 ,265000-IT & Telecommunications,NZ900-Finance & Corporate Services,ATOS IT SERVICES UK LTD,1155977,46.00 ,IT peripherals/individual ordered software and equipment
Ministry of Justice,MoJ HQ,02/Mar/2015 ,265000-IT & Telecommunications,NZ900-Finance & Corporate Services,ATOS IT SERVICES UK LTD,1155977,25.78 ,IT peripherals/individual ordered software and equipment
Ministry of Justice,MoJ HQ,02/Mar/2015 ,265000-IT & Telecommunications,NZ900-Finance & Corporate Services,ATOS IT SERVICES UK LTD,1155977,968.36 ,IT peripherals/individual ordered software and equipment
Ministry of Justice,MoJ HQ,02/Mar/2015 ,265000-IT & Telecommunications,NZ900-Finance & Corporate Services,ATOS IT SERVICES UK LTD,1155977,111.45 ,IT peripherals/individual ordered software and equipment
Ministry of Justice,MoJ HQ,02/Mar/2015 ,265000-IT & Telecommunications,NZ900-Finance & Corporate Services,ATOS IT SERVICES UK LTD,1155977,82.78 ,IT peripherals/individual ordered software and equipment
Ministry of Justice,MoJ HQ,02/Mar/2015 ,265000-IT & Telecommunications,NZ900-Finance & Corporate Services,ATOS IT SERVICES UK LTD,1155977,11.62 ,IT peripherals/individual ordered software and equipment
Ministry of Justice,MoJ HQ,02/Mar/2015 ,265000-IT & Telecommunications,NZ900-Finance & Corporate Services,ATOS IT SERVICES UK LTD,1155977,11.62 ,Provision of IT Peripherals and individually ordered software and equipment
Ministry of Justice,MoJ HQ,02/Mar/2015 ,265000-IT & Telecommunications,NZ900-Finance & Corporate Services,ATOS IT SERVICES UK LTD,1155977,58.47 ,Provision of IT Peripherals and individually ordered software and equipment
Ministry of Justice,MoJ HQ,02/Mar/2015 ,265000-IT & Telecommunications,NZ900-Finance & Corporate Services,ATOS IT SERVICES UK LTD,1155977,50.90 ,Provision of IT Peripherals and individually ordered software and equipment
Ministry of Justice,MoJ HQ,02/Mar/2015 ,265000-IT & Telecommunications,NZ900-Finance & Corporate Services,ATOS IT SERVICES UK LTD,1155977,43.22 ,Provision of IT Peripherals and individually ordered software and equipment
Ministry of Justice,MoJ HQ,02/Mar/2015 ,265000-IT & Telecommunications,NZ900-Finance & Corporate Services,ATOS IT SERVICES UK LTD,1155977,25.78 ,Provision of IT Peripherals and individually ordered software and equipment
Ministry of Justice,MoJ HQ,02/Mar/2015 ,532000-Tangible GBV - Additions,NZ900-Finance & Corporate Services,ATOS IT SERVICES UK LTD,1155977,"21,772.35 ",TW3: online tools to support collaboration and new ways of working
Ministry of Justice,MoJ HQ,30/Mar/2015 ,265000-IT & Telecommunications,NZ900-Finance & Corporate Services,ATOS IT SERVICES UK LTD,1158585,"23,458.00 ",TW3: online tools to support collaboration and new ways of working
Ministry of Justice,MoJ HQ,30/Mar/2015 ,265000-IT & Telecommunications,NZ900-Finance & Corporate Services,ATOS IT SERVICES UK LTD,1158585,"25,435.63 ",TW3: online tools to support collaboration and new ways of working
Ministry of Justice,MoJ HQ,30/Mar/2015 ,532000-Tangible GBV - Additions,NZ900-Finance & Corporate Services,ATOS IT SERVICES UK LTD,1158585,"26,659.41 ",TW3: online tools to support collaboration and new ways of working
Ministry of Justice,MoJ HQ,30/Mar/2015 ,532000-Tangible GBV - Additions,NZ900-Finance & Corporate Services,ATOS IT SERVICES UK LTD,1158585,"29,754.00 ",TW3: online tools to support collaboration and new ways of working
Ministry of Justice,MoJ HQ,30/Mar/2015 ,265000-IT & Telecommunications,NZ900-Finance & Corporate Services,ATOS IT SERVICES UK LTD,1158585,"33,076.99 ",TW3: online tools to support collaboration and new ways of working
Ministry of Justice,MoJ HQ,30/Mar/2015 ,265000-IT & Telecommunications,NZ900-Finance & Corporate Services,ATOS IT SERVICES UK LTD,1158585,"36,176.00 ",TW3: online tools to support collaboration and new ways of working
Ministry of Justice,MoJ HQ,30/Mar/2015 ,265000-IT & Telecommunications,NZ900-Finance & Corporate Services,ATOS IT SERVICES UK LTD,1158585,"7,235.20 ",TW3: online tools to support collaboration and new ways of working
Ministry of Justice,MoJ HQ,12/Mar/2015 ,532000-Tangible GBV - Additions,NZ900-Finance & Corporate Services,ATOS IT SERVICES UK LTD,1156740,"38,296.03 ",TW3: online tools to support collaboration and new ways of working
Ministry of Justice,MoJ HQ,30/Mar/2015 ,265000-IT & Telecommunications,NZ900-Finance & Corporate Services,ATOS IT SERVICES UK LTD,1158585,"40,000.00 ",TW3: online tools to support collaboration and new ways of working
Ministry of Justice,MoJ HQ,30/Mar/2015 ,512000-Intangible GBV - Additions,NZ900-Finance & Corporate Services,ATOS IT SERVICES UK LTD,1158585,"45,168.05 ",TW3: online tools to support collaboration and new ways of working
Ministry of Justice,MoJ HQ,30/Mar/2015 ,265000-IT & Telecommunications,NZ900-Finance & Corporate Services,ATOS IT SERVICES UK LTD,1158585,"50,251.00 ",TW3: online tools to support collaboration and new ways of working
Ministry of Justice,MoJ HQ,02/Mar/2015 ,265000-IT & Telecommunications,NZ900-Finance & Corporate Services,ATOS IT SERVICES UK LTD,1155977,37.50 ,Provision of IT Peripherals and individually ordered software and equipment
Ministry of Justice,MoJ HQ,02/Mar/2015 ,265000-IT & Telecommunications,NZ900-Finance & Corporate Services,ATOS IT SERVICES UK LTD,1155977,11.62 ,Provision of IT Peripherals and individually ordered software and equipment
Ministry of Justice,MoJ HQ,05/Mar/2015 ,265000-IT & Telecommunications,NZ900-Finance & Corporate Services,ATOS IT SERVICES UK LTD,1156152,"65,961.55 ",TW3: online tools to support collaboration and new ways of working
Ministry of Justice,MoJ HQ,30/Mar/2015 ,532000-Tangible GBV - Additions,NZ900-Finance & Corporate Services,ATOS IT SERVICES UK LTD,1158585,"72,900.59 ",TW3: online tools to support collaboration and new ways of working
Ministry of Justice,MoJ HQ,05/Mar/2015 ,265000-IT & Telecommunications,NZ900-Finance & Corporate Services,ATOS IT SERVICES UK LTD,1156152,"74,538.96 ",TW3: online tools to support collaboration and new ways of working
Ministry of Justice,MoJ HQ,30/Mar/2015 ,532000-Tangible GBV - Additions,NZ900-Finance & Corporate Services,ATOS IT SERVICES UK LTD,1158585,"36,836.00 ",Criminal Justice Service Efficiency-Bench
Ministry of Justice,MoJ HQ,30/Mar/2015 ,532000-Tangible GBV - Additions,NZ900-Finance & Corporate Services,ATOS IT SERVICES UK LTD,1158585,"42,951.00 ",Criminal Justice Service Efficiency-Bench
Ministry of Justice,MoJ HQ,02/Mar/2015 ,265000-IT & Telecommunications,NZ900-Finance & Corporate Services,ATOS IT SERVICES UK LTD,1155977,"89,675.98 ",TW3: online tools to support collaboration and new ways of working
Ministry of Justice,MoJ HQ,31/Mar/2015 ,532000-Tangible GBV - Additions,NZ900-Finance & Corporate Services,ATOS IT SERVICES UK LTD,1158643,"99,009.00 ",TW3: online tools to support collaboration and new ways of working
Ministry of Justice,MoJ HQ,26/Mar/2015 ,512000-Intangible GBV - Additions,NZ900-Finance & Corporate Services,ATOS IT SERVICES UK LTD,1158366,"115,218.91 ",TW3: online tools to support collaboration and new ways of working
Ministry of Justice,MoJ HQ,02/Mar/2015 ,532000-Tangible GBV - Additions,NZ900-Finance & Corporate Services,ATOS IT SERVICES UK LTD,1155977,"125,000.00 ",IT peripherals/individual ordered software and equipment
Ministry of Justice,MoJ HQ,31/Mar/2015 ,512000-Intangible GBV - Additions,NZ900-Finance & Corporate Services,ATOS IT SERVICES UK LTD,1158643,"215,613.52 ",TW3: online tools to support collaboration and new ways of working
Ministry of Justice,MoJ HQ,26/Mar/2015 ,532000-Tangible GBV - Additions,NZ900-Finance & Corporate Services,ATOS IT SERVICES UK LTD,1158366,"216,971.31 ",TW3: online tools to support collaboration and new ways of working
Ministry of Justice,MoJ HQ,26/Mar/2015 ,265000-IT & Telecommunications,NZ900-Finance & Corporate Services,ATOS IT SERVICES UK LTD,1158366,"217,825.44 ",TW3: online tools to support collaboration and new ways of working
Ministry of Justice,MoJ HQ,31/Mar/2015 ,532000-Tangible GBV - Additions,NZ900-Finance & Corporate Services,ATOS IT SERVICES UK LTD,1158643,"346,000.00 ",TW3: online tools to support collaboration and new ways of working
Ministry of Justice,MoJ HQ,26/Mar/2015 ,532000-Tangible GBV - Additions,NZ900-Finance & Corporate Services,ATOS IT SERVICES UK LTD,1158366,"711,390.82 ",Criminal Justice Service Efficiency-Magistrates In Court Presentation
Ministry of Justice,MoJ HQ,31/Mar/2015 ,532000-Tangible GBV - Additions,NZ900-Finance & Corporate Services,ATOS IT SERVICES UK LTD,6897,"1,529,364.60 ",TW3: online tools to support collaboration and new ways of working
Ministry of Justice,MoJ HQ,02/Mar/2015 ,265000-IT & Telecommunications,NZ900-Finance & Corporate Services,ATOS IT SERVICES UK LTD,1155977,25.78 ,Provision of IT Peripherals and individually ordered software and equipment
Ministry of Justice,MoJ HQ,02/Mar/2015 ,265000-IT & Telecommunications,NZ900-Finance & Corporate Services,ATOS IT SERVICES UK LTD,1155977,11.62 ,Provision of IT Peripherals and individually ordered software and equipment
Ministry of Justice,MoJ HQ,02/Mar/2015 ,265000-IT & Telecommunications,NZ900-Finance & Corporate Services,ATOS IT SERVICES UK LTD,1155977,11.62 ,Provision of IT Peripherals and individually ordered software and equipment
Ministry of Justice,MoJ HQ,02/Mar/2015 ,265000-IT & Telecommunications,NZ900-Finance & Corporate Services,ATOS IT SERVICES UK LTD,1155977,11.62 ,Provision of IT Peripherals and individually ordered software and equipment
Ministry of Justice,MoJ HQ,02/Mar/2015 ,265000-IT & Telecommunications,NZ900-Finance & Corporate Services,ATOS IT SERVICES UK LTD,1155977,11.62 ,Provision of IT Peripherals and individually ordered software and equipment
Ministry of Justice,MoJ HQ,02/Mar/2015 ,265000-IT & Telecommunications,NZ900-Finance & Corporate Services,ATOS IT SERVICES UK LTD,1155977,11.62 ,Provision of IT Peripherals and individually ordered software and equipment
Ministry of Justice,MoJ HQ,02/Mar/2015 ,265000-IT & Telecommunications,NZ900-Finance & Corporate Services,ATOS IT SERVICES UK LTD,1155977,11.62 ,Provision of IT Peripherals and individually ordered software and equipment
Ministry of Justice,MoJ HQ,02/Mar/2015 ,265000-IT & Telecommunications,NZ900-Finance & Corporate Services,ATOS IT SERVICES UK LTD,1155977,11.62 ,Provision of IT Peripherals and individually ordered software and equipment
Ministry of Justice,MoJ HQ,02/Mar/2015 ,265000-IT & Telecommunications,NZ900-Finance & Corporate Services,ATOS IT SERVICES UK LTD,1155977,11.62 ,Provision of IT Peripherals and individually ordered software and equipment
Ministry of Justice,MoJ HQ,02/Mar/2015 ,265000-IT & Telecommunications,NZ900-Finance & Corporate Services,ATOS IT SERVICES UK LTD,1155977,11.62 ,Provision of IT Peripherals and individually ordered software and equipment
Ministry of Justice,MoJ HQ,02/Mar/2015 ,265000-IT & Telecommunications,NZ900-Finance & Corporate Services,ATOS IT SERVICES UK LTD,1155977,11.62 ,Provision of IT Peripherals and individually ordered software and equipment
Ministry of Justice,MoJ HQ,02/Mar/2015 ,265000-IT & Telecommunications,NZ900-Finance & Corporate Services,ATOS IT SERVICES UK LTD,1155977,248.34 ,Provision of IT Peripherals and individually ordered software and equipment
Ministry of Justice,MoJ HQ,02/Mar/2015 ,265000-IT & Telecommunications,NZ900-Finance & Corporate Services,ATOS IT SERVICES UK LTD,1155977,92.44 ,Provision of IT Peripherals and individually ordered software and equipment
Ministry of Justice,MoJ HQ,02/Mar/2015 ,265000-IT & Telecommunications,NZ900-Finance & Corporate Services,ATOS IT SERVICES UK LTD,1155977,10.92 ,Provision of IT Peripherals and individually ordered software and equipment
Ministry of Justice,MoJ HQ,02/Mar/2015 ,265000-IT & Telecommunications,NZ900-Finance & Corporate Services,ATOS IT SERVICES UK LTD,1155977,6.38 ,Provision of IT Peripherals and individually ordered software and equipment
Ministry of Justice,MoJ HQ,02/Mar/2015 ,265000-IT & Telecommunications,NZ900-Finance & Corporate Services,ATOS IT SERVICES UK LTD,1155977,6.38 ,Provision of IT Peripherals and individually ordered software and equipment
Ministry of Justice,MoJ HQ,02/Mar/2015 ,265000-IT & Telecommunications,NZ900-Finance & Corporate Services,ATOS IT SERVICES UK LTD,1155977,10.92 ,Provision of IT Peripherals and individually ordered software and equipment
Ministry of Justice,MoJ HQ,02/Mar/2015 ,265000-IT & Telecommunications,NZ900-Finance & Corporate Services,ATOS IT SERVICES UK LTD,1155977,164.00 ,Provision of IT Peripherals and individually ordered software and equipment
Ministry of Justice,MoJ HQ,02/Mar/2015 ,265000-IT & Telecommunications,NZ900-Finance & Corporate Services,ATOS IT SERVICES UK LTD,1155977,164.00 ,Provision of IT Peripherals and individually ordered software and equipment
Ministry of Justice,MoJ HQ,02/Mar/2015 ,265000-IT & Telecommunications,NZ900-Finance & Corporate Services,ATOS IT SERVICES UK LTD,1155977,164.00 ,Provision of IT Peripherals and individually ordered software and equipment
Ministry of Justice,MoJ HQ,02/Mar/2015 ,265000-IT & Telecommunications,NZ900-Finance & Corporate Services,ATOS IT SERVICES UK LTD,1155977,328.00 ,Provision of IT Peripherals and individually ordered software and equipment
Ministry of Justice,MoJ HQ,02/Mar/2015 ,265000-IT & Telecommunications,NZ900-Finance & Corporate Services,ATOS IT SERVICES UK LTD,1155977,328.00 ,Provision of IT Peripherals and individually ordered software and equipment
Ministry of Justice,MoJ HQ,02/Mar/2015 ,265000-IT & Telecommunications,NZ900-Finance & Corporate Services,ATOS IT SERVICES UK LTD,1155977,164.00 ,Provision of IT Peripherals and individually ordered software and equipment
Ministry of Justice,MoJ HQ,02/Mar/2015 ,265000-IT & Telecommunications,NZ900-Finance & Corporate Services,ATOS IT SERVICES UK LTD,1155977,492.00 ,Provision of IT Peripherals and individually ordered software and equipment
Ministry of Justice,MoJ HQ,02/Mar/2015 ,265000-IT & Telecommunications,NZ900-Finance & Corporate Services,ATOS IT SERVICES UK LTD,1155977,46.00 ,Provision of IT Peripherals and individually ordered software and equipment
Ministry of Justice,MoJ HQ,02/Mar/2015 ,265000-IT & Telecommunications,NZ900-Finance & Corporate Services,ATOS IT SERVICES UK LTD,1155977,46.00 ,Provision of IT Peripherals and individually ordered software and equipment
Ministry of Justice,MoJ HQ,02/Mar/2015 ,265000-IT & Telecommunications,NZ900-Finance & Corporate Services,ATOS IT SERVICES UK LTD,1155977,46.00 ,Provision of IT Peripherals and individually ordered software and equipment
Ministry of Justice,MoJ HQ,02/Mar/2015 ,265000-IT & Telecommunications,NZ900-Finance & Corporate Services,ATOS IT SERVICES UK LTD,1155977,46.00 ,Provision of IT Peripherals and individually ordered software and equipment
Ministry of Justice,MoJ HQ,02/Mar/2015 ,265000-IT & Telecommunications,NZ900-Finance & Corporate Services,ATOS IT SERVICES UK LTD,1155977,46.00 ,Provision of IT Peripherals and individually ordered software and equipment
Ministry of Justice,MoJ HQ,02/Mar/2015 ,265000-IT & Telecommunications,NZ900-Finance & Corporate Services,ATOS IT SERVICES UK LTD,1155977,46.00 ,Provision of IT Peripherals and individually ordered software and equipment
Ministry of Justice,MoJ HQ,02/Mar/2015 ,265000-IT & Telecommunications,NZ900-Finance & Corporate Services,ATOS IT SERVICES UK LTD,1155977,25.78 ,Provision of IT Peripherals and individually ordered software and equipment
Ministry of Justice,MoJ HQ,02/Mar/2015 ,265000-IT & Telecommunications,NZ900-Finance & Corporate Services,ATOS IT SERVICES UK LTD,1155977,998.80 ,Provision of IT Peripherals and individually ordered software and equipment
Ministry of Justice,MoJ HQ,02/Mar/2015 ,265000-IT & Telecommunications,NZ900-Finance & Corporate Services,ATOS IT SERVICES UK LTD,1155977,46.00 ,Provision of IT Peripherals and individually ordered software and equipment
Ministry of Justice,MoJ HQ,02/Mar/2015 ,265000-IT & Telecommunications,NZ900-Finance & Corporate Services,ATOS IT SERVICES UK LTD,1155977,25.78 ,Provision of IT Peripherals and individually ordered software and equipment
Ministry of Justice,MoJ HQ,02/Mar/2015 ,265000-IT & Telecommunications,NZ900-Finance & Corporate Services,ATOS IT SERVICES UK LTD,1155977,46.00 ,Provision of IT Peripherals and individually ordered software and equipment
Ministry of Justice,MoJ HQ,02/Mar/2015 ,265000-IT & Telecommunications,NZ900-Finance & Corporate Services,ATOS IT SERVICES UK LTD,1155977,138.00 ,Provision of IT Peripherals and individually ordered software and equipment
Ministry of Justice,MoJ HQ,02/Mar/2015 ,265000-IT & Telecommunications,NZ900-Finance & Corporate Services,ATOS IT SERVICES UK LTD,1155977,25.78 ,Provision of IT Peripherals and individually ordered software and equipment
Ministry of Justice,MoJ HQ,02/Mar/2015 ,265000-IT & Telecommunications,NZ900-Finance & Corporate Services,ATOS IT SERVICES UK LTD,1155977,46.00 ,Provision of IT Peripherals and individually ordered software and equipment
Ministry of Justice,MoJ HQ,02/Mar/2015 ,265000-IT & Telecommunications,NZ900-Finance & Corporate Services,ATOS IT SERVICES UK LTD,1155977,103.12 ,Provision of IT Peripherals and individually ordered software and equipment
Ministry of Justice,MoJ HQ,02/Mar/2015 ,265000-IT & Telecommunications,NZ900-Finance & Corporate Services,ATOS IT SERVICES UK LTD,1155977,46.00 ,Provision of IT Peripherals and individually ordered software and equipment
Ministry of Justice,MoJ HQ,02/Mar/2015 ,265000-IT & Telecommunications,NZ900-Finance & Corporate Services,ATOS IT SERVICES UK LTD,1155977,46.00 ,Provision of IT Peripherals and individually ordered software and equipment
Ministry of Justice,MoJ HQ,02/Mar/2015 ,265000-IT & Telecommunications,NZ900-Finance & Corporate Services,ATOS IT SERVICES UK LTD,1155977,46.00 ,Provision of IT Peripherals and individually ordered software and equipment
Ministry of Justice,MoJ HQ,02/Mar/2015 ,265000-IT & Telecommunications,NZ900-Finance & Corporate Services,ATOS IT SERVICES UK LTD,1155977,46.00 ,Provision of IT Peripherals and individually ordered software and equipment
Ministry of Justice,MoJ HQ,02/Mar/2015 ,265000-IT & Telecommunications,NZ900-Finance & Corporate Services,ATOS IT SERVICES UK LTD,1155977,51.56 ,Provision of IT Peripherals and individually ordered software and equipment
Ministry of Justice,MoJ HQ,02/Mar/2015 ,265000-IT & Telecommunications,NZ900-Finance & Corporate Services,ATOS IT SERVICES UK LTD,1155977,25.78 ,Provision of IT Peripherals and individually ordered software and equipment
Ministry of Justice,MoJ HQ,02/Mar/2015 ,265000-IT & Telecommunications,NZ900-Finance & Corporate Services,ATOS IT SERVICES UK LTD,1155977,25.78 ,Provision of IT Peripherals and individually ordered software and equipment
Ministry of Justice,MoJ HQ,02/Mar/2015 ,265000-IT & Telecommunications,NZ900-Finance & Corporate Services,ATOS IT SERVICES UK LTD,1155977,180.46 ,Provision of IT Peripherals and individually ordered software and equipment
Ministry of Justice,MoJ HQ,02/Mar/2015 ,265000-IT & Telecommunications,NZ900-Finance & Corporate Services,ATOS IT SERVICES UK LTD,1155977,51.56 ,Provision of IT Peripherals and individually ordered software and equipment
Ministry of Justice,MoJ HQ,02/Mar/2015 ,265000-IT & Telecommunications,NZ900-Finance & Corporate Services,ATOS IT SERVICES UK LTD,1155977,46.00 ,Provision of IT Peripherals and individually ordered software and equipment
Ministry of Justice,MoJ HQ,02/Mar/2015 ,265000-IT & Telecommunications,NZ900-Finance & Corporate Services,ATOS IT SERVICES UK LTD,1155977,25.78 ,Provision of IT Peripherals and individually ordered software and equipment
Ministry of Justice,MoJ HQ,02/Mar/2015 ,265000-IT & Telecommunications,NZ900-Finance & Corporate Services,ATOS IT SERVICES UK LTD,1155977,25.78 ,Provision of IT Peripherals and individually ordered software and equipment
Ministry of Justice,MoJ HQ,02/Mar/2015 ,265000-IT & Telecommunications,NZ900-Finance & Corporate Services,ATOS IT SERVICES UK LTD,1155977,46.00 ,Provision of IT Peripherals and individually ordered software and equipment
Ministry of Justice,MoJ HQ,02/Mar/2015 ,265000-IT & Telecommunications,NZ900-Finance & Corporate Services,ATOS IT SERVICES UK LTD,1155977,25.78 ,Provision of IT Peripherals and individually ordered software and equipment
Ministry of Justice,MoJ HQ,02/Mar/2015 ,265000-IT & Telecommunications,NZ900-Finance & Corporate Services,ATOS IT SERVICES UK LTD,1155977,11.62 ,Provision of IT Peripherals and individually ordered software and equipment
Ministry of Justice,MoJ HQ,02/Mar/2015 ,265000-IT & Telecommunications,NZ900-Finance & Corporate Services,ATOS IT SERVICES UK LTD,1155977,11.62 ,Provision of IT Peripherals and individually ordered software and equipment
Ministry of Justice,MoJ HQ,02/Mar/2015 ,265000-IT & Telecommunications,NZ900-Finance & Corporate Services,ATOS IT SERVICES UK LTD,1155977,354.13 ,Provision of IT Peripherals and individually ordered software and equipment
Ministry of Justice,MoJ HQ,02/Mar/2015 ,265000-IT & Telecommunications,NZ900-Finance & Corporate Services,ATOS IT SERVICES UK LTD,1155977,587.22 ,Provision of IT Peripherals and individually ordered software and equipment
Ministry of Justice,MoJ HQ,02/Mar/2015 ,265000-IT & Telecommunications,NZ900-Finance & Corporate Services,ATOS IT SERVICES UK LTD,1155977,11.62 ,Provision of IT Peripherals and individually ordered software and equipment
Ministry of Justice,MoJ HQ,02/Mar/2015 ,265000-IT & Telecommunications,NZ900-Finance & Corporate Services,ATOS IT SERVICES UK LTD,1155977,11.62 ,Provision of IT Peripherals and individually ordered software and equipment
Ministry of Justice,MoJ HQ,02/Mar/2015 ,265000-IT & Telecommunications,NZ900-Finance & Corporate Services,ATOS IT SERVICES UK LTD,1155977,66.86 ,Provision of IT Peripherals and individually ordered software and equipment
Ministry of Justice,MoJ HQ,02/Mar/2015 ,265000-IT & Telecommunications,NZ900-Finance & Corporate Services,ATOS IT SERVICES UK LTD,1155977,265.63 ,Provision of IT Peripherals and individually ordered software and equipment
Ministry of Justice,MoJ HQ,31/Mar/2015 ,265000-IT & Telecommunications,NZ900-Finance & Corporate Services,ATOS IT SERVICES UK LTD,1158643,"166,777.00 ",Costs relating to Office of Public Guardianship contact centre facilities in Birmingham & Nottingham
Ministry of Justice,MoJ HQ,31/Mar/2015 ,265000-IT & Telecommunications,NZ900-Finance & Corporate Services,ATOS IT SERVICES UK LTD,1158643,"33,355.40 ",Costs relating to Office of Public Guardianship contact centre facilities in Birmingham & Nottingham
Ministry of Justice,MoJ HQ,02/Mar/2015 ,265000-IT & Telecommunications,NZ900-Finance & Corporate Services,ATOS IT SERVICES UK LTD,1155977,43.22 ,Provision of IT Peripherals and individually ordered software and equipment
Ministry of Justice,MoJ HQ,02/Mar/2015 ,265000-IT & Telecommunications,NZ900-Finance & Corporate Services,ATOS IT SERVICES UK LTD,1155977,43.22 ,Provision of IT Peripherals and individually ordered software and equipment
Ministry of Justice,MoJ HQ,02/Mar/2015 ,265000-IT & Telecommunications,NZ900-Finance & Corporate Services,ATOS IT SERVICES UK LTD,1155977,164.00 ,Provision of IT Peripherals and individually ordered software and equipment
Ministry of Justice,MoJ HQ,02/Mar/2015 ,265000-IT & Telecommunications,NZ900-Finance & Corporate Services,ATOS IT SERVICES UK LTD,1155977,164.00 ,Provision of IT Peripherals and individually ordered software and equipment
Ministry of Justice,MoJ HQ,02/Mar/2015 ,265000-IT & Telecommunications,NZ900-Finance & Corporate Services,ATOS IT SERVICES UK LTD,1155977,164.00 ,Provision of IT Peripherals and individually ordered software and equipment
Ministry of Justice,MoJ HQ,02/Mar/2015 ,265000-IT & Telecommunications,NZ900-Finance & Corporate Services,ATOS IT SERVICES UK LTD,1155977,164.00 ,Provision of IT Peripherals and individually ordered software and equipment
Ministry of Justice,MoJ HQ,02/Mar/2015 ,265000-IT & Telecommunications,NZ900-Finance & Corporate Services,ATOS IT SERVICES UK LTD,1155977,164.00 ,Provision of IT Peripherals and individually ordered software and equipment
Ministry of Justice,MoJ HQ,02/Mar/2015 ,265000-IT & Telecommunications,NZ900-Finance & Corporate Services,ATOS IT SERVICES UK LTD,1155977,164.00 ,Provision of IT Peripherals and individually ordered software and equipment
Ministry of Justice,MoJ HQ,02/Mar/2015 ,265000-IT & Telecommunications,NZ900-Finance & Corporate Services,ATOS IT SERVICES UK LTD,1155977,164.00 ,Provision of IT Peripherals and individually ordered software and equipment
Ministry of Justice,MoJ HQ,02/Mar/2015 ,265000-IT & Telecommunications,NZ900-Finance & Corporate Services,ATOS IT SERVICES UK LTD,1155977,46.00 ,Provision of IT Peripherals and individually ordered software and equipment
Ministry of Justice,MoJ HQ,02/Mar/2015 ,265000-IT & Telecommunications,NZ900-Finance & Corporate Services,ATOS IT SERVICES UK LTD,1155977,46.00 ,Provision of IT Peripherals and individually ordered software and equipment
Ministry of Justice,MoJ HQ,02/Mar/2015 ,265000-IT & Telecommunications,NZ900-Finance & Corporate Services,ATOS IT SERVICES UK LTD,1155977,265.63 ,Provision of IT Peripherals and individually ordered software and equipment
Ministry of Justice,MoJ HQ,02/Mar/2015 ,265000-IT & Telecommunications,NZ900-Finance & Corporate Services,ATOS IT SERVICES UK LTD,1155977,265.63 ,Provision of IT Peripherals and individually ordered software and equipment
Ministry of Justice,MoJ HQ,12/Mar/2015 ,265000-IT & Telecommunications,NZ900-Finance & Corporate Services,ATOS IT SERVICES UK LTD,1156740,"36,240.03 ",Telephony Services for Judges Lodgings
Ministry of Justice,MoJ HQ,42068,265000-IT & Telecommunications,QY200-OU10 Billback,ATOS IT SERVICES UK LTD,1156152,"436,786.09 ",Network Optimisation Programme Internet Protocol Telephony Fixed Charges
Ministry of Justice,MoJ HQ,42068,265000-IT & Telecommunications,QY200-OU10 Billback,ATOS IT SERVICES UK LTD,1156152,"87,357.22 ",Network Optimisation Programme Internet Protocol Telephony Fixed Charges
Ministry of Justice,MoJ HQ,42075,265000-IT & Telecommunications,QZ500-Arms Length Bodies (CPG),ATOS IT SERVICES UK LTD,1156740,"24,249.00 ",Shaw's Directory Forms
Ministry of Justice,MoJ HQ,42089,265000-IT & Telecommunications,QY200-OU10 Billback,ATOS IT SERVICES UK LTD,1158366,"211,841.50 ",Sustainable Print Service
Ministry of Justice,MoJ HQ,42089,265000-IT & Telecommunications,QY200-OU10 Billback,ATOS IT SERVICES UK LTD,1158366,"415,387.41 ",Network Optimisation Programme Internet Protocol Telephony Fixed Charges
Ministry of Justice,MoJ HQ,42089,265000-IT & Telecommunications,QY200-OU10 Billback,ATOS IT SERVICES UK LTD,1158366,"83,077.48 ",Network Optimisation Programme Internet Protocol Telephony Fixed Charges
Ministry of Justice,MoJ HQ,42068,265000-IT & Telecommunications,QY200-OU10 Billback,ATOS IT SERVICES UK LTD,1156152,"126,262.90 ",Provision of Telephony Service for Non-Walk In Take Over - 01/04/2013 to 18/10/2016
Ministry of Justice,MoJ HQ,42068,265000-IT & Telecommunications,QY200-OU10 Billback,ATOS IT SERVICES UK LTD,1156152,"25,252.58 ",Provision of Telephony Service for Non-Walk In Take Over - 01/04/2013 to 18/10/2016
Ministry of Justice,MoJ HQ,42094,265000-IT & Telecommunications,QY200-OU10 Billback,ATOS IT SERVICES UK LTD,1158643,"219,236.78 ",Sustainable Print Service
Ministry of Justice,MoJ HQ,42065,265000-IT & Telecommunications,LZ600-Transforming Justice,ATOS IT SERVICES UK LTD,1155977,25.78 ,Provision of IT peripherals and individually ordered software and equipment
Ministry of Justice,MoJ HQ,42065,265000-IT & Telecommunications,LZ600-Transforming Justice,ATOS IT SERVICES UK LTD,1155977,82.78 ,Provision of IT peripherals and individually ordered software and equipment
Ministry of Justice,MoJ HQ,42065,265000-IT & Telecommunications,LZ600-Transforming Justice,ATOS IT SERVICES UK LTD,1155977,11.62 ,Provision of IT peripherals and individually ordered software and equipment
Ministry of Justice,MoJ HQ,42065,265000-IT & Telecommunications,LZ600-Transforming Justice,ATOS IT SERVICES UK LTD,1155977,5.13 ,Provision of IT peripherals and individually ordered software and equipment
Ministry of Justice,MoJ HQ,42065,265000-IT & Telecommunications,LZ600-Transforming Justice,ATOS IT SERVICES UK LTD,1155977,43.43 ,Provision of IT peripherals and individually ordered software and equipment
Ministry of Justice,MoJ HQ,42065,265000-IT & Telecommunications,LZ600-Transforming Justice,ATOS IT SERVICES UK LTD,1155977,164.00 ,Provision of IT peripherals and individually ordered software and equipment
Ministry of Justice,MoJ HQ,42065,265000-IT & Telecommunications,LZ600-Transforming Justice,ATOS IT SERVICES UK LTD,1155977,46.00 ,Provision of IT peripherals and individually ordered software and equipment
Ministry of Justice,MoJ HQ,42065,265000-IT & Telecommunications,LZ600-Transforming Justice,ATOS IT SERVICES UK LTD,1155977,82.78 ,Provision of IT peripherals and individually ordered software and equipment
Ministry of Justice,MoJ HQ,42065,265000-IT & Telecommunications,QZ500-Arms Length Bodies (CPG),ATOS IT SERVICES UK LTD,1155977,46.00 ,Provision of IT peripherals and individually ordered software and equipment
Ministry of Justice,MoJ HQ,42065,265000-IT & Telecommunications,QZ500-Arms Length Bodies (CPG),ATOS IT SERVICES UK LTD,1155977,25.78 ,Provision of IT peripherals and individually ordered software and equipment
Ministry of Justice,MoJ HQ,42065,265000-IT & Telecommunications,QZ500-Arms Length Bodies (CPG),ATOS IT SERVICES UK LTD,1155977,25.78 ,Provision of IT peripherals and individually ordered software and equipment
Ministry of Justice,MoJ HQ,42065,265000-IT & Telecommunications,QZ500-Arms Length Bodies (CPG),ATOS IT SERVICES UK LTD,1155977,51.56 ,Provision of IT peripherals and individually ordered software and equipment
Ministry of Justice,MoJ HQ,42065,265000-IT & Telecommunications,QZ500-Arms Length Bodies (CPG),ATOS IT SERVICES UK LTD,1155977,25.78 ,Provision of IT peripherals and individually ordered software and equipment
Ministry of Justice,MoJ HQ,42065,265000-IT & Telecommunications,QZ500-Arms Length Bodies (CPG),ATOS IT SERVICES UK LTD,1155977,51.56 ,Provision of IT peripherals and individually ordered software and equipment
Ministry of Justice,MoJ HQ,42065,265000-IT & Telecommunications,QZ500-Arms Length Bodies (CPG),ATOS IT SERVICES UK LTD,1155977,82.78 ,Provision of IT peripherals and individually ordered software and equipment
Ministry of Justice,MoJ HQ,42065,265000-IT & Telecommunications,NZ900-Finance & Corporate Services,ATOS IT SERVICES UK LTD,1155977,25.78 ,Provision of IT peripherals and individually ordered software and equipment
Ministry of Justice,MoJ HQ,42065,265000-IT & Telecommunications,NZ900-Finance & Corporate Services,ATOS IT SERVICES UK LTD,1155977,25.78 ,Provision of IT peripherals and individually ordered software and equipment
Ministry of Justice,MoJ HQ,42065,265000-IT & Telecommunications,NZ900-Finance & Corporate Services,ATOS IT SERVICES UK LTD,1155977,103.12 ,Provision of IT peripherals and individually ordered software and equipment
Ministry of Justice,MoJ HQ,42065,265000-IT & Telecommunications,NZ900-Finance & Corporate Services,ATOS IT SERVICES UK LTD,1155977,46.00 ,Provision of IT peripherals and individually ordered software and equipment
Ministry of Justice,MoJ HQ,42065,265000-IT & Telecommunications,NZ401-Finance Group Feeder,ATOS IT SERVICES UK LTD,1155977,11.16 ,Provision of IT peripherals and individually ordered software and equipment
Ministry of Justice,MoJ HQ,42065,265000-IT & Telecommunications,NZ401-Finance Group Feeder,ATOS IT SERVICES UK LTD,1155977,103.12 ,Provision of IT peripherals and individually ordered software and equipment
Ministry of Justice,MoJ HQ,42065,265000-IT & Telecommunications,NZ401-Finance Group Feeder,ATOS IT SERVICES UK LTD,1155977,51.56 ,Provision of IT peripherals and individually ordered software and equipment
Ministry of Justice,MoJ HQ,42065,265000-IT & Telecommunications,NZ401-Finance Group Feeder,ATOS IT SERVICES UK LTD,1155977,11.62 ,Provision of IT peripherals and individually ordered software and equipment
Ministry of Justice,MoJ HQ,42065,265000-IT & Telecommunications,NZ401-Finance Group Feeder,ATOS IT SERVICES UK LTD,1155977,11.17 ,Provision of IT peripherals and individually ordered software and equipment
Ministry of Justice,MoJ HQ,42065,265000-IT & Telecommunications,NZ900-Finance & Corporate Services,ATOS IT SERVICES UK LTD,1155977,164.00 ,Provision of IT peripherals and individually ordered software and equipment
Ministry of Justice,MoJ HQ,42065,265000-IT & Telecommunications,NZ900-Finance & Corporate Services,ATOS IT SERVICES UK LTD,1155977,164.00 ,Provision of IT peripherals and individually ordered software and equipment
Ministry of Justice,MoJ HQ,42065,265000-IT & Telecommunications,NZ900-Finance & Corporate Services,ATOS IT SERVICES UK LTD,1155977,25.78 ,Provision of IT peripherals and individually ordered software and equipment
Ministry of Justice,MoJ HQ,42065,265000-IT & Telecommunications,NZ900-Finance & Corporate Services,ATOS IT SERVICES UK LTD,1155977,25.78 ,Provision of IT peripherals and individually ordered software and equipment
Ministry of Justice,MoJ HQ,42065,265000-IT & Telecommunications,NZ900-Finance & Corporate Services,ATOS IT SERVICES UK LTD,1155977,46.00 ,Provision of IT peripherals and individually ordered software and equipment
Ministry of Justice,MoJ HQ,42065,265000-IT & Telecommunications,NZ900-Finance & Corporate Services,ATOS IT SERVICES UK LTD,1155977,46.00 ,Provision of IT peripherals and individually ordered software and equipment
Ministry of Justice,MoJ HQ,42065,265000-IT & Telecommunications,NZ900-Finance & Corporate Services,ATOS IT SERVICES UK LTD,1155977,51.56 ,Provision of IT peripherals and individually ordered software and equipment
Ministry of Justice,MoJ HQ,42065,265000-IT & Telecommunications,NZ900-Finance & Corporate Services,ATOS IT SERVICES UK LTD,1155977,164.00 ,Provision of IT peripherals and individually ordered software and equipment
Ministry of Justice,MoJ HQ,42065,265000-IT & Telecommunications,NZ900-Finance & Corporate Services,ATOS IT SERVICES UK LTD,1155977,11.62 ,Provision of IT peripherals and individually ordered software and equipment
Ministry of Justice,MoJ HQ,42065,265000-IT & Telecommunications,NZ900-Finance & Corporate Services,ATOS IT SERVICES UK LTD,1155977,25.00 ,Provision of IT peripherals and individually ordered software and equipment
Ministry of Justice,MoJ HQ,42065,265000-IT & Telecommunications,NZ900-Finance & Corporate Services,ATOS IT SERVICES UK LTD,1155977,78.26 ,Provision of IT peripherals and individually ordered software and equipment
Ministry of Justice,MoJ HQ,42065,265000-IT & Telecommunications,NQ901-MOJ Procurement Feeder,ATOS IT SERVICES UK LTD,1155977,328.00 ,Provision of IT peripherals and individually ordered software and equipment
Ministry of Justice,MoJ HQ,42065,265000-IT & Telecommunications,NQ901-MOJ Procurement Feeder,ATOS IT SERVICES UK LTD,1155977,25.78 ,Provision of IT peripherals and individually ordered software and equipment
Ministry of Justice,MoJ HQ,42065,265000-IT & Telecommunications,NQ901-MOJ Procurement Feeder,ATOS IT SERVICES UK LTD,1155977,25.78 ,Provision of IT peripherals and individually ordered software and equipment
Ministry of Justice,MoJ HQ,42065,265000-IT & Telecommunications,NQ901-MOJ Procurement Feeder,ATOS IT SERVICES UK LTD,1155977,25.78 ,Provision of IT peripherals and individually ordered software and equipment
Ministry of Justice,MoJ HQ,42065,265000-IT & Telecommunications,NQ901-MOJ Procurement Feeder,ATOS IT SERVICES UK LTD,1155977,92.00 ,Provision of IT peripherals and individually ordered software and equipment
Ministry of Justice,MoJ HQ,42065,265000-IT & Telecommunications,NQ901-MOJ Procurement Feeder,ATOS IT SERVICES UK LTD,1155977,25.78 ,Provision of IT peripherals and individually ordered software and equipment
Ministry of Justice,MoJ HQ,42065,265000-IT & Telecommunications,NQ901-MOJ Procurement Feeder,ATOS IT SERVICES UK LTD,1155977,331.12 ,Provision of IT peripherals and individually ordered software and equipment
Ministry of Justice,MoJ HQ,42065,265000-IT & Telecommunications,QZ500-Arms Length Bodies (CPG),ATOS IT SERVICES UK LTD,1155977,25.78 ,Provision of IT peripherals and individually ordered software and equipment
Ministry of Justice,MoJ HQ,02/Mar/2015 ,265000-IT & Telecommunications,LZ600-Transforming Justice,ATOS IT SERVICES UK LTD,1155977,25.78 ,Provision of IT peripherals and individually ordered software and equipment
Ministry of Justice,MoJ HQ,02/Mar/2015 ,265000-IT & Telecommunications,LZ600-Transforming Justice,ATOS IT SERVICES UK LTD,1155977,25.78 ,Provision of IT peripherals and individually ordered software and equipment
Ministry of Justice,MoJ HQ,02/Mar/2015 ,265000-IT & Telecommunications,LZ600-Transforming Justice,ATOS IT SERVICES UK LTD,1155977,25.78 ,Provision of IT peripherals and individually ordered software and equipment
Ministry of Justice,MoJ HQ,02/Mar/2015 ,265000-IT & Telecommunications,LZ600-Transforming Justice,ATOS IT SERVICES UK LTD,1155977,51.56 ,Provision of IT peripherals and individually ordered software and equipment
Ministry of Justice,MoJ HQ,02/Mar/2015 ,265000-IT & Telecommunications,LZ600-Transforming Justice,ATOS IT SERVICES UK LTD,1155977,48.00 ,Provision of IT peripherals and individually ordered software and equipment
Ministry of Justice,MoJ HQ,02/Mar/2015 ,265000-IT & Telecommunications,LZ600-Transforming Justice,ATOS IT SERVICES UK LTD,1155977,48.00 ,Provision of IT peripherals and individually ordered software and equipment
Ministry of Justice,MoJ HQ,02/Mar/2015 ,265000-IT & Telecommunications,LZ600-Transforming Justice,ATOS IT SERVICES UK LTD,1155977,51.56 ,Provision of IT peripherals and individually ordered software and equipment
Ministry of Justice,MoJ HQ,02/Mar/2015 ,265000-IT & Telecommunications,LZ600-Transforming Justice,ATOS IT SERVICES UK LTD,1155977,78.26 ,Provision of IT peripherals and individually ordered software and equipment
Ministry of Justice,MoJ HQ,02/Mar/2015 ,265000-IT & Telecommunications,LZ600-Transforming Justice,ATOS IT SERVICES UK LTD,1155977,78.26 ,Provision of IT peripherals and individually ordered software and equipment
Ministry of Justice,MoJ HQ,02/Mar/2015 ,265000-IT & Telecommunications,LZ600-Transforming Justice,ATOS IT SERVICES UK LTD,1155977,78.26 ,Provision of IT peripherals and individually ordered software and equipment
Ministry of Justice,MoJ HQ,02/Mar/2015 ,265000-IT & Telecommunications,QZ600-CPG Other,ATOS IT SERVICES UK LTD,1155977,46.00 ,Provision of IT peripherals and individually ordered software and equipment
Ministry of Justice,MoJ HQ,02/Mar/2015 ,265000-IT & Telecommunications,QZ600-CPG Other,ATOS IT SERVICES UK LTD,1155977,66.86 ,Provision of IT peripherals and individually ordered software and equipment
Ministry of Justice,MoJ HQ,02/Mar/2015 ,265000-IT & Telecommunications,QZ600-CPG Other,ATOS IT SERVICES UK LTD,1155977,164.00 ,Provision of IT peripherals and individually ordered software and equipment
Ministry of Justice,MoJ HQ,02/Mar/2015 ,265000-IT & Telecommunications,QZ600-CPG Other,ATOS IT SERVICES UK LTD,1155977,46.00 ,Provision of IT peripherals and individually ordered software and equipment
Ministry of Justice,MoJ HQ,30/Mar/2015 ,265000-IT & Telecommunications,RB999-JPG - CJRD,ATOS IT SERVICES UK LTD,1158585,"54,461.00 ",IT equipment and support for the Section 28 Project.
Ministry of Justice,MoJ HQ,02/Mar/2015 ,265000-IT & Telecommunications,RB999-JPG - CJRD,ATOS IT SERVICES UK LTD,1155977,258.33 ,Provision of IT peripherals and individually ordered software and equipment
Ministry of Justice,MoJ HQ,02/Mar/2015 ,265000-IT & Telecommunications,RB999-JPG - CJRD,ATOS IT SERVICES UK LTD,1155977,82.78 ,Provision of IT peripherals and individually ordered software and equipment
Ministry of Justice,MoJ HQ,02/Mar/2015 ,265000-IT & Telecommunications,RC999-Criminal Justice Group - OMS,ATOS IT SERVICES UK LTD,1155977,51.56 ,Provision of IT peripherals and individually ordered software and equipment
Ministry of Justice,MoJ HQ,02/Mar/2015 ,265000-IT & Telecommunications,RC999-Criminal Justice Group - OMS,ATOS IT SERVICES UK LTD,1155977,11.17 ,Provision of IT peripherals and individually ordered software and equipment
Ministry of Justice,MoJ HQ,02/Mar/2015 ,265000-IT & Telecommunications,"RD999-CJG - DGs Office, BDSU, Inspectorates & Ombudsman",ATOS IT SERVICES UK LTD,1155977,25.78 ,Provision of IT peripherals and individually ordered software and equipment
Ministry of Justice,MoJ HQ,02/Mar/2015 ,265000-IT & Telecommunications,"RD999-CJG - DGs Office, BDSU, Inspectorates & Ombudsman",ATOS IT SERVICES UK LTD,1155977,14.13 ,Provision of IT peripherals and individually ordered software and equipment
Ministry of Justice,MoJ HQ,02/Mar/2015 ,265000-IT & Telecommunications,"RD999-CJG - DGs Office, BDSU, Inspectorates & Ombudsman",ATOS IT SERVICES UK LTD,1155977,164.00 ,Provision of IT peripherals and individually ordered software and equipment
Ministry of Justice,MoJ HQ,02/Mar/2015 ,265000-IT & Telecommunications,"RD999-CJG - DGs Office, BDSU, Inspectorates & Ombudsman",ATOS IT SERVICES UK LTD,1155977,25.23 ,Provision of IT peripherals and individually ordered software and equipment
Ministry of Justice,MoJ HQ,02/Mar/2015 ,265000-IT & Telecommunications,"RD999-CJG - DGs Office, BDSU, Inspectorates & Ombudsman",ATOS IT SERVICES UK LTD,1155977,164.00 ,Provision of IT peripherals and individually ordered software and equipment
Ministry of Justice,MoJ HQ,02/Mar/2015 ,265000-IT & Telecommunications,"RD999-CJG - DGs Office, BDSU, Inspectorates & Ombudsman",ATOS IT SERVICES UK LTD,1155977,46.00 ,Provision of IT peripherals and individually ordered software and equipment
Ministry of Justice,MoJ HQ,02/Mar/2015 ,265000-IT & Telecommunications,"RD999-CJG - DGs Office, BDSU, Inspectorates & Ombudsman",ATOS IT SERVICES UK LTD,1155977,69.33 ,Provision of IT peripherals and individually ordered software and equipment
Ministry of Justice,MoJ HQ,02/Mar/2015 ,265000-IT & Telecommunications,"RD999-CJG - DGs Office, BDSU, Inspectorates & Ombudsman",ATOS IT SERVICES UK LTD,1155977,46.22 ,Provision of IT peripherals and individually ordered software and equipment
Ministry of Justice,MoJ HQ,02/Mar/2015 ,265000-IT & Telecommunications,"RD999-CJG - DGs Office, BDSU, Inspectorates & Ombudsman",ATOS IT SERVICES UK LTD,1155977,46.22 ,Provision of IT peripherals and individually ordered software and equipment
Ministry of Justice,MoJ HQ,02/Mar/2015 ,265000-IT & Telecommunications,"RD999-CJG - DGs Office, BDSU, Inspectorates & Ombudsman",ATOS IT SERVICES UK LTD,1155977,23.11 ,Provision of IT peripherals and individually ordered software and equipment
Ministry of Justice,MoJ HQ,02/Mar/2015 ,265000-IT & Telecommunications,"RD999-CJG - DGs Office, BDSU, Inspectorates & Ombudsman",ATOS IT SERVICES UK LTD,1155977,265.63 ,Dragon Naturally Speaking Professional v10 software
Ministry of Justice,MoJ HQ,02/Mar/2015 ,265000-IT & Telecommunications,RB999-JPG - CJRD,ATOS IT SERVICES UK LTD,1155977,168.10 ,Provision of IT peripherals and individually ordered software and equipment
Ministry of Justice,MoJ HQ,02/Mar/2015 ,265000-IT & Telecommunications,RB999-JPG - CJRD,ATOS IT SERVICES UK LTD,1155977,46.05 ,Provision of IT peripherals and individually ordered software and equipment
Ministry of Justice,MoJ HQ,02/Mar/2015 ,265000-IT & Telecommunications,RB999-JPG - CJRD,ATOS IT SERVICES UK LTD,1155977,11.62 ,Provision of IT peripherals and individually ordered software and equipment
Ministry of Justice,MoJ HQ,02/Mar/2015 ,265000-IT & Telecommunications,RC999-Criminal Justice Group - OMS,ATOS IT SERVICES UK LTD,1155977,120.69 ,Provision of IT peripherals and individually ordered software and equipment
Ministry of Justice,MoJ HQ,26/Mar/2015 ,532000-Tangible GBV - Additions,NZ900-Finance & Corporate Services,BT GLOBAL SERVICES,1158379,"23,043.10 ",Criminal Justice Service Efficiency-Web
Ministry of Justice,MoJ HQ,26/Mar/2015 ,532000-Tangible GBV - Additions,NZ900-Finance & Corporate Services,BT GLOBAL SERVICES,1158379,"-23,043.10 ",Criminal Justice Service Efficiency-Web
Ministry of Justice,MoJ HQ,26/Mar/2015 ,532000-Tangible GBV - Additions,NZ900-Finance & Corporate Services,BT GLOBAL SERVICES,1158379,"96,012.92 ",Criminal Justice Service Efficiency-Web
Ministry of Justice,MoJ HQ,26/Mar/2015 ,532000-Tangible GBV - Additions,NZ900-Finance & Corporate Services,BT GLOBAL SERVICES,1158379,"19,202.58 ",Criminal Justice Service Efficiency-Web
Ministry of Justice,MoJ HQ,42075,265000-IT & Telecommunications,QY200-OU10 Billback,BT TELECOMMUNICATIONS PLC,1156772,"22,481.80 ",Provision of telephones � service and usage charges - February 2015
Ministry of Justice,MoJ HQ,42075,265000-IT & Telecommunications,QY200-OU10 Billback,BT TELECOMMUNICATIONS PLC,1156772,"4,496.36 ",Provision of telephones � service and usage charges - February 2015
Ministry of Justice,MoJ HQ,31/Mar/2015 ,263000-Other Contracted Out Services,OZ501-HRD Feeder,CABINET OFFICE,5687,"1,338,168.39 ",Civil Service Expert Services cost. 
Ministry of Justice,MoJ HQ,26/Mar/2015 ,265000-IT & Telecommunications,NZ900-Finance & Corporate Services,CACI LTD,1158380,"59,655.00 ",IT peripherals/individual ordered software and equipment
Ministry of Justice,MoJ HQ,31/Mar/2015 ,265000-IT & Telecommunications,NZ900-Finance & Corporate Services,CACI LTD,6898,"106,962.04 ",IT peripherals/individual ordered software and equipment
Ministry of Justice,MoJ HQ,05/Mar/2015 ,512000-Intangible GBV - Additions,NZ900-Finance & Corporate Services,CACI LTD,1156175,"239,932.00 ",Youth Justice Board - Carework AssetPlus
Ministry of Justice,MoJ HQ,05/Mar/2015 ,512000-Intangible GBV - Additions,NZ900-Finance & Corporate Services,CACI LTD,1156175,"47,986.40 ",Youth Justice Board - Carework AssetPlus
Ministry of Justice,MoJ HQ,23/Mar/2015 ,263000-Other Contracted Out Services,RG999-CFLAP Accumulator,CAFCASS,5657,"304,259.76 ",Court directed child contact interventions including Separated Parents Information Programme and Domestic Violence Perpetrator Programme services
Ministry of Justice,MoJ HQ,02/Mar/2015 ,245000-Grants in Aid to NDPBs,RZ500-Arms Length Bodies (JPG),CAFCASS,5487,"4,477,925.00 ",Grants in aid to Children And Family Courts Advice and Support Services
Ministry of Justice,MoJ HQ,25/Mar/2015 ,245000-Grants in Aid to NDPBs,RZ500-Arms Length Bodies (JPG),CAFCASS,5674,"6,716,888.00 ",Grants in aid to Children And Family Courts Advice and Support Services
Ministry of Justice,MoJ HQ,26/Mar/2015 ,266000-Judicial Costs,MF600-Directorate of Judicial Offices,CALDER CONFERENCES LTD,1158381,540.32 ,The cost to hire venue for the Private Family Law Induction 
Ministry of Justice,MoJ HQ,30/Mar/2015 ,266000-Judicial Costs,MF600-Directorate of Judicial Offices,CALDER CONFERENCES LTD,1158589,"22,705.53 ",Criminal Induction Seminar for Recorders 
Ministry of Justice,MoJ HQ,30/Mar/2015 ,266000-Judicial Costs,MF600-Directorate of Judicial Offices,CALDER CONFERENCES LTD,1158589,"29,818.73 ",Hire of training venue for Judicial Training
Ministry of Justice,MoJ HQ,31/Mar/2015 ,266000-Judicial Costs,MF600-Directorate of Judicial Offices,CALDER CONFERENCES LTD,1158644,"35,348.60 ",Hire of training venue for Judicial Training
Ministry of Justice,MoJ HQ,16/Mar/2015 ,266000-Judicial Costs,MF600-Directorate of Judicial Offices,CALDER CONFERENCES LTD,1157178,"28,142.44 ",Hire of training venue for Judicial Training
Ministry of Justice,MoJ HQ,16/Mar/2015 ,266000-Judicial Costs,MF600-Directorate of Judicial Offices,CALDER CONFERENCES LTD,1157178,"30,579.96 ",Hire of training venue for Judicial Training
Ministry of Justice,MoJ HQ,26/Mar/2015 ,266000-Judicial Costs,MF600-Directorate of Judicial Offices,CALDER CONFERENCES LTD,1158381,"21,236.56 ",The cost to hire Highgate House for the for the Private Family Law Induction 
Ministry of Justice,MoJ HQ,31/Mar/2015 ,266000-Judicial Costs,MF600-Directorate of Judicial Offices,CALDER CONFERENCES LTD,1158644,255.00 ,VAT Exempt Costs
Ministry of Justice,MoJ HQ,42065,212001-Agency staff,QY200-OU10 Billback,CAPITA BUSINESS SERVICES LTD,1155990,"909,735.44 ",Fees and expenses for temporary contract staff utilised across MoJ for week ending 21.02.2015
Ministry of Justice,MoJ HQ,42065,212001-Agency staff,QY200-OU10 Billback,CAPITA BUSINESS SERVICES LTD,1155990,"181,947.09 ",Fees and expenses for temporary contract staff utilised across MoJ for week ending 21.02.2015
Ministry of Justice,MoJ HQ,42089,212001-Agency staff,QY200-OU10 Billback,CAPITA BUSINESS SERVICES LTD,1158382,"2,036,614.65 ",Fees and expenses for temporary contract staff utilised across MoJ for week ending 07.03.2015
Ministry of Justice,MoJ HQ,42089,212001-Agency staff,QY200-OU10 Billback,CAPITA BUSINESS SERVICES LTD,1158382,"407,322.93 ",Fees and expenses for temporary contract staff utilised across MoJ for week ending 07.03.2015
Ministry of Justice,MoJ HQ,42094,212001-Agency staff,QY200-OU10 Billback,CAPITA BUSINESS SERVICES LTD,6899,"1,008,876.92 ",Fees and expenses for temporary contract staff utilised across MoJ
Ministry of Justice,MoJ HQ,42094,212001-Agency staff,QY200-OU10 Billback,CAPITA BUSINESS SERVICES LTD,6899,"201,775.38 ",Fees and expenses for temporary contract staff utilised across MoJ
Ministry of Justice,MoJ HQ,26/Mar/2015 ,223000-Other Expenditure,RG999-CFLAP Accumulator,CARAT (A TRADING DIVISION OF DENTSU AEGIS UK LTD),1158383,20.78 ,Media Buying Campaign January 2015 until March 2015
Ministry of Justice,MoJ HQ,26/Mar/2015 ,223000-Other Expenditure,RG999-CFLAP Accumulator,CARAT (A TRADING DIVISION OF DENTSU AEGIS UK LTD),1158383,"22,580.78 ",Media Buying Campaign January 2015 until March 2015
Ministry of Justice,MoJ HQ,16/Mar/2015 ,223000-Other Expenditure,RG999-CFLAP Accumulator,CARAT (A TRADING DIVISION OF DENTSU AEGIS UK LTD),26579,"25,000.30 ",Media Buying Campaign January 2015 until March 2015
Ministry of Justice,MoJ HQ,16/Mar/2015 ,223000-Other Expenditure,RG999-CFLAP Accumulator,CARAT (A TRADING DIVISION OF DENTSU AEGIS UK LTD),26579,23.01 ,Media Buying Campaign January 2015 until March 2015
Ministry of Justice,MoJ HQ,30/Mar/2015 ,223000-Other Expenditure,RG999-CFLAP Accumulator,CARAT (A TRADING DIVISION OF DENTSU AEGIS UK LTD),1158590,37.53 ,Media Buying Campaign January 2015 until March 2015
Ministry of Justice,MoJ HQ,30/Mar/2015 ,223000-Other Expenditure,RG999-CFLAP Accumulator,CARAT (A TRADING DIVISION OF DENTSU AEGIS UK LTD),1158590,"40,511.65 ",Media Buying Campaign January 2015 until March 2015
Ministry of Justice,MoJ HQ,26/Mar/2015 ,223000-Other Expenditure,RG999-CFLAP Accumulator,CARAT (A TRADING DIVISION OF DENTSU AEGIS UK LTD),1158383,"4,516.16 ",Media Buying Campaign January 2015 until March 2016
Ministry of Justice,MoJ HQ,16/Mar/2015 ,223000-Other Expenditure,RG999-CFLAP Accumulator,CARAT (A TRADING DIVISION OF DENTSU AEGIS UK LTD),26579,"5,000.06 ",Media Buying Campaign January 2015 until March 2016
Ministry of Justice,MoJ HQ,30/Mar/2015 ,223000-Other Expenditure,RG999-CFLAP Accumulator,CARAT (A TRADING DIVISION OF DENTSU AEGIS UK LTD),1158590,"8,102.33 ",Media Buying Campaign January 2015 until March 2016
Ministry of Justice,MoJ HQ,26/Mar/2015 ,223000-Other Expenditure,RG999-CFLAP Accumulator,CARAT (A TRADING DIVISION OF DENTSU AEGIS UK LTD),1158383,-0.06 ,VAT Credit- Media Buying Campaign 
Ministry of Justice,MoJ HQ,16/Mar/2015 ,223000-Other Expenditure,RG999-CFLAP Accumulator,CARAT (A TRADING DIVISION OF DENTSU AEGIS UK LTD),26579,-0.07 ,VAT Credit- Media Buying Campaign 
Ministry of Justice,MoJ HQ,30/Mar/2015 ,223000-Other Expenditure,RG999-CFLAP Accumulator,CARAT (A TRADING DIVISION OF DENTSU AEGIS UK LTD),1158590,-0.10 ,VAT Credit- Media Buying Campaign 
Ministry of Justice,MoJ HQ,31/Mar/2015 ,221000-Property Rent and Rates,RG999-CFLAP Accumulator,CBRE LTD,6900,"109,473.93 ",Hillsborough - Rent & Service charges for Bridgewater Price & Thompson House 
Ministry of Justice,MoJ HQ,31/Mar/2015 ,221000-Property Rent and Rates,RG999-CFLAP Accumulator,CBRE LTD,6900,"21,894.79 ",Hillsborough - Rent & Service charges for Bridgewater Price & Thompson House 
Ministry of Justice,MoJ HQ,02/Mar/2015 ,245000-Grants in Aid to NDPBs,KY600-Access to Justice,CCRC (CRIMINAL CASES REVIEW COMMISSION),5488,"460,000.00 ",Monthly Grant in Aid to Criminal Cases Review Commission (March 15)
Ministry of Justice,MoJ HQ,30/Mar/2015 ,265000-IT & Telecommunications,NX900-MOJ Shared Services,CGI IT UK LTD,1158591,"36,469.00 ",Activity on the network required for the Merge of Aramis and Phoenix Oracle systems
Ministry of Justice,MoJ HQ,30/Mar/2015 ,265000-IT & Telecommunications,NZ900-Finance & Corporate Services,CGI IT UK LTD,1158591,"21,091.00 ",Monthly CGI IT UK LTD costs for Application Maintenance and Support
Ministry of Justice,MoJ HQ,31/Mar/2015 ,265000-IT & Telecommunications,NZ900-Finance & Corporate Services,CGI IT UK LTD,1158645,"155,847.00 ",Monthly CGI IT UK LTD costs for Printing
Ministry of Justice,MoJ HQ,31/Mar/2015 ,265000-IT & Telecommunications,NZ900-Finance & Corporate Services,CGI IT UK LTD,1158645,"402,178.00 ",Monthly CGI IT UK LTD costs for Printing
Ministry of Justice,MoJ HQ,31/Mar/2015 ,265000-IT & Telecommunications,NZ900-Finance & Corporate Services,CGI IT UK LTD,1158645,"2,244,365.82 ",Monthly CGI IT UK LTD costs for Application Maintenance and Support
Ministry of Justice,MoJ HQ,30/Mar/2015 ,265000-IT & Telecommunications,NZ900-Finance & Corporate Services,CGI IT UK LTD,1158591,"48,401.18 ",CGI Exit and Transition costs
Ministry of Justice,MoJ HQ,09/Mar/2015 ,512000-Intangible GBV - Additions,NZ900-Finance & Corporate Services,CGI IT UK LTD,1156483,"33,488.00 ",Common Platform prog (creating unified common IT platform in HMCTS)  - Prog. 
Ministry of Justice,MoJ HQ,30/Mar/2015 ,512000-Intangible GBV - Additions,NZ900-Finance & Corporate Services,CGI IT UK LTD,1158591,"36,107.00 ",CIVIL & FAMILY  CaseMan & FamilyMan (Post single court)
Ministry of Justice,MoJ HQ,12/Mar/2015 ,512000-Intangible GBV - Additions,NZ900-Finance & Corporate Services,CGI IT UK LTD,1156789,"55,084.47 ",TW3: online tools to support collaboration and new ways of working
Ministry of Justice,MoJ HQ,09/Mar/2015 ,512000-Intangible GBV - Additions,NZ900-Finance & Corporate Services,CGI IT UK LTD,1156483,"58,000.00 ",Common Platform prog (creating unified common IT platform in HMCTS) 
Ministry of Justice,MoJ HQ,30/Mar/2015 ,512000-Intangible GBV - Additions,NZ900-Finance & Corporate Services,CGI IT UK LTD,1158591,"58,000.00 ",Common Platform prog (creating unified common IT platform in HMCTS) 
Ministry of Justice,MoJ HQ,31/Mar/2015 ,512000-Intangible GBV - Additions,NZ900-Finance & Corporate Services,CGI IT UK LTD,6902,"90,267.00 ",CIVIL & FAMILY  CaseMan & FamilyMan (Post single court)
Ministry of Justice,MoJ HQ,31/Mar/2015 ,512000-Intangible GBV - Additions,NZ900-Finance & Corporate Services,CGI IT UK LTD,1158645,"145,204.00 ",CIVIL & FAMILY  CaseMan & FamilyMan (Post single court)
Ministry of Justice,MoJ HQ,31/Mar/2015 ,512000-Intangible GBV - Additions,NZ900-Finance & Corporate Services,CGI IT UK LTD,1158645,"29,040.80 ",CIVIL & FAMILY  CaseMan & FamilyMan (Post single court)
Ministry of Justice,MoJ HQ,31/Mar/2015 ,512000-Intangible GBV - Additions,NZ900-Finance & Corporate Services,CGI IT UK LTD,6901,"338,810.00 ",CIVIL & FAMILY  CaseMan & FamilyMan (Post single court)
Ministry of Justice,MoJ HQ,31/Mar/2015 ,512000-Intangible GBV - Additions,NZ900-Finance & Corporate Services,CGI IT UK LTD,6901,"67,762.00 ",CIVIL & FAMILY  CaseMan & FamilyMan (Post single court)
Ministry of Justice,MoJ HQ,19/Mar/2015 ,265000-IT & Telecommunications,NZ900-Finance & Corporate Services,COMPUTACENTER (UK) LTD,1157551,"321,921.94 ",Citrix XPE - subscription Advantage Software Assurance
Ministry of Justice,MoJ HQ,19/Mar/2015 ,265000-IT & Telecommunications,NZ900-Finance & Corporate Services,COMPUTACENTER (UK) LTD,1157551,"64,384.39 ",Citrix XPE - subscription Advantage Software Assurance
Ministry of Justice,MoJ HQ,31/Mar/2015 ,512000-Intangible GBV - Additions,NZ900-Finance & Corporate Services,CPS (CROWN PROSECUTION SERVICE),5688,"147,526.33 ",Common Platform prog (creating unified common IT platform in HMCTS) - Digital Repository
Ministry of Justice,MoJ HQ,42067,710600-Creditor < 1 year - Payable to Consolidated Fund,QZ600-CPG Other,CRIMINAL INJURIES COMPENSATION AUTHORITY#WW0009016,5530,"1,596,110.73 ",Refund of third party monies
Ministry of Justice,MoJ HQ,19/Mar/2015 ,223000-Other Expenditure,OZ501-HRD Feeder,CROWN SOLICITORS FOR NORTHERN IRELAND,1157570,"27,642.00 ",Payments to be made to the Crown Solicitor's Office for the litigation work.
Ministry of Justice,MoJ HQ,19/Mar/2015 ,223000-Other Expenditure,OZ501-HRD Feeder,CROWN SOLICITORS FOR NORTHERN IRELAND,1157570,"5,528.40 ",Payments to be made to the Crown Solicitor's Office for the litigation work.
Ministry of Justice,MoJ HQ,19/Mar/2015 ,221000-Property Rent and Rates,NZ406-Strategic Estates Feeder,DTZ DEBENHAM TIE LEUNG,1157597,"455,689.25 ",Rent for Grenadier House for the period 25/03/2015 to 23/06/2015 
Ministry of Justice,MoJ HQ,42089,263000-Other Contracted Out Services,RC999-Criminal Justice Group - OMS,ECD (COOKHAM WOOD) LTD,1158406,"916,401.26 ",Operation costs for Medway Secure Training Centre for young people in custody
Ministry of Justice,MoJ HQ,42094,263000-Other Contracted Out Services,RC999-Criminal Justice Group - OMS,ECD (ONLEY) LTD,6904,"935,315.92 ",Operation costs for Rainsbrook Secure Training Centre for young people in custody
Ministry of Justice,MoJ HQ,12/Mar/2015 ,261000-Fuel and Utilities,NZ406-Strategic Estates Feeder,EDF ENERGY LTD,1156842,"21,221.41 ",Clive House Electricity supply for the period 01/02/2015 - 28/02/2015
Ministry of Justice,MoJ HQ,12/Mar/2015 ,261000-Fuel and Utilities,NZ406-Strategic Estates Feeder,EDF ENERGY LTD,1156842,"4,244.28 ",Clive House Electricity supply for the period 01/02/2015 - 28/02/2016
Ministry of Justice,MoJ HQ,12/Mar/2015 ,261000-Fuel and Utilities,NZ406-Strategic Estates Feeder,EDF ENERGY LTD,1156842,"61,452.30 ",102 Petty France Electricity supply  for the period 01/02/2015 - 28/02/2015
Ministry of Justice,MoJ HQ,12/Mar/2015 ,261000-Fuel and Utilities,NZ406-Strategic Estates Feeder,EDF ENERGY LTD,1156842,"12,290.46 ",103 Petty France Electricity supply  for the period 01/02/2015 - 28/02/2015
Ministry of Justice,MoJ HQ,09/Mar/2015 ,261000-Fuel and Utilities,NZ406-Strategic Estates Feeder,EDF ENERGY LTD,1156515,-0.01 ,102 Petty France Electricity supply for the period 01/01/2015 to 31/01/2015
Ministry of Justice,MoJ HQ,09/Mar/2015 ,261000-Fuel and Utilities,NZ406-Strategic Estates Feeder,EDF ENERGY LTD,1156515,"64,859.45 ",102 Petty France Electricity supply for the period 01/01/2015 to 31/01/2015
Ministry of Justice,MoJ HQ,09/Mar/2015 ,261000-Fuel and Utilities,NZ406-Strategic Estates Feeder,EDF ENERGY LTD,1156515,28.64 ,102 Petty France Electricity supply for the period 01/01/2015 to 31/01/2015
Ministry of Justice,MoJ HQ,09/Mar/2015 ,261000-Fuel and Utilities,NZ406-Strategic Estates Feeder,EDF ENERGY LTD,1156515,"12,971.89 ",102 Petty France Electricity supply for the period 01/01/2015 to 31/01/2015
Ministry of Justice,MoJ HQ,30/Mar/2015 ,265000-IT & Telecommunications,NZ900-Finance & Corporate Services,EQUINITI ICS LTD,1158596,"30,689.00 ",To replace the TRIM application with SharePoint 2013   within MoJ HQ
Ministry of Justice,MoJ HQ,30/Mar/2015 ,265000-IT & Telecommunications,NZ900-Finance & Corporate Services,EQUINITI ICS LTD,1158596,"-30,689.00 ",To replace the TRIM application with SharePoint 2013   within MoJ HQ
Ministry of Justice,MoJ HQ,30/Mar/2015 ,265000-IT & Telecommunications,NZ900-Finance & Corporate Services,EQUINITI ICS LTD,1158596,"76,722.50 ",To replace the TRIM application with SharePoint 2013   within MoJ HQ
Ministry of Justice,MoJ HQ,30/Mar/2015 ,265000-IT & Telecommunications,NZ900-Finance & Corporate Services,EQUINITI ICS LTD,1158596,"15,344.50 ",To replace the TRIM application with SharePoint 2013   within MoJ HQ
Ministry of Justice,MoJ HQ,31/Mar/2015 ,265000-IT & Telecommunications,NZ900-Finance & Corporate Services,EQUINITI ICS LTD,1158647,"153,445.00 ",To replace the TRIM application with SharePoint 2013   within MoJ HQ
Ministry of Justice,MoJ HQ,31/Mar/2015 ,265000-IT & Telecommunications,NZ900-Finance & Corporate Services,EQUINITI ICS LTD,1158647,"30,689.00 ",Common Platform prog (creating unified common IT platform in HMCTS) - Digital Repository
Ministry of Justice,MoJ HQ,02/Mar/2015 ,264000-Consultancy,LZ600-Transforming Justice,EY LLP,1156010,"212,395.00 ",Data development and definition support to the Transforming Rehabilitation programme
Ministry of Justice,MoJ HQ,31/Mar/2015 ,212001-Agency staff,LZ600-Transforming Justice,EY LLP,6905,"417,962.14 ",Data development and definition support to the Transforming Rehabilitation programme
Ministry of Justice,MoJ HQ,31/Mar/2015 ,212001-Agency staff,LZ600-Transforming Justice,EY LLP,6905,"83,592.43 ",Data development and definition support to the Transforming Rehabilitation programme
Ministry of Justice,MoJ HQ,26/Mar/2015 ,212001-Agency staff,LZ600-Transforming Justice,EY LLP,1158409,"748,924.54 ",Data development and definition support to the Transforming Rehabilitation programme
Ministry of Justice,MoJ HQ,26/Mar/2015 ,212001-Agency staff,LZ600-Transforming Justice,EY LLP,1158409,"149,784.91 ",Data development and definition support to the Transforming Rehabilitation programme
Ministry of Justice,MoJ HQ,30/Mar/2015 ,264000-Consultancy,NZ900-Finance & Corporate Services,FDM GROUP LTD,1158598,"46,980.00 ",Monthly FDM Group Support Service costs
Ministry of Justice,MoJ HQ,30/Mar/2015 ,264000-Consultancy,NZ900-Finance & Corporate Services,FDM GROUP LTD,1158598,"9,396.00 ",Monthly FDM Group Support Service costs
Ministry of Justice,MoJ HQ,06-MAR-2015,223705-External Solicitors Fees (Not Advice),RG101-Inquests & Inquiries,FIELD FISHER WATERHOUSE LLP,645576,"29,156.16 ",External Solicitor fees to the Macur Review
Ministry of Justice,MoJ HQ,09-MAR-2015,223705-External Solicitors Fees (Not Advice),RG701-CFLAP Programme Office (JPG),FIELD FISHER WATERHOUSE LLP,644578,"116,567.35 ",External Solicitor fees to the Hillsborough Inquests   
Ministry of Justice,MoJ HQ,06/Mar/2015 ,223000-Other Expenditure,RJ999-JPG - International,FOREIGN & COMMONWEALTH OFFICE,5542,"32,223.00 ",Translation services provided by the European Union for use by the UK Government 
Ministry of Justice,MoJ HQ,12-MAR-2015,223706-Counsel's Fees (Not Advice),RG701-CFLAP Programme Office (JPG),FOUR NEW SQUARE LINCOLNS INN,125092,"44,016.84 ",Counsel to the Hillsborough Inquests
Ministry of Justice,MoJ HQ,09/Mar/2015 ,265000-IT & Telecommunications,NZ900-Finance & Corporate Services,FUJITSU SERVICES LTD,1156531,"27,514.33 ",Hosting Tower Criminal Justice ServiceE Operations Production Environment and pre production enviroment
Ministry of Justice,MoJ HQ,09/Mar/2015 ,265000-IT & Telecommunications,NZ900-Finance & Corporate Services,FUJITSU SERVICES LTD,1156531,"30,893.90 ",Monthly Fujitsu costs for Application Maintenance & Support charges for Exchange services
Ministry of Justice,MoJ HQ,30/Mar/2015 ,265000-IT & Telecommunications,NZ900-Finance & Corporate Services,FUJITSU SERVICES LTD,1158601,"32,566.57 ",Monthly Fujitsu costs for Application Maintenance & Support charges for Exchange services
Ministry of Justice,MoJ HQ,09/Mar/2015 ,265000-IT & Telecommunications,NZ900-Finance & Corporate Services,FUJITSU SERVICES LTD,1156531,"34,517.33 ","Criminal Justice SE Hosting Tower 2014 - 2015 Criminal Justice ServiceE Service Management Configuration Management,operational change,service level management,service review"
Ministry of Justice,MoJ HQ,30/Mar/2015 ,265000-IT & Telecommunications,NZ900-Finance & Corporate Services,FUJITSU SERVICES LTD,1158601,"34,517.33 ","Criminal Justice SE Hosting Tower 2014 - 2015 Criminal Justice ServiceE Service Management Configuration Management,operational change,service level management,service review"
Ministry of Justice,MoJ HQ,09/Mar/2015 ,265000-IT & Telecommunications,NZ900-Finance & Corporate Services,FUJITSU SERVICES LTD,1156531,"34,906.33 ",Criminal Justice Secure Exchange - Security Intruder Detection
Ministry of Justice,MoJ HQ,30/Mar/2015 ,265000-IT & Telecommunications,NZ900-Finance & Corporate Services,FUJITSU SERVICES LTD,1158601,"34,906.33 ",Criminal Justice Secure Exchange - Security Intruder Detection
Ministry of Justice,MoJ HQ,26/Mar/2015 ,265000-IT & Telecommunications,NZ900-Finance & Corporate Services,FUJITSU SERVICES LTD,1158421,"46,935.57 ",Criminal Justice Secure Email Service Desk Equipment
Ministry of Justice,MoJ HQ,30/Mar/2015 ,265000-IT & Telecommunications,NZ900-Finance & Corporate Services,FUJITSU SERVICES LTD,1158601,"46,935.57 ",Criminal Justice Secure Email Service Desk Equipment
Ministry of Justice,MoJ HQ,26/Mar/2015 ,265000-IT & Telecommunications,NZ900-Finance & Corporate Services,FUJITSU SERVICES LTD,1158421,"72,873.99 ",Criminal Justice Secure Email Solution Assurance Software
Ministry of Justice,MoJ HQ,23/Mar/2015 ,265000-IT & Telecommunications,NZ900-Finance & Corporate Services,FUJITSU SERVICES LTD,26606,"72,873.99 ",Criminal Justice Secure Email Solution Assurance Software
Ministry of Justice,MoJ HQ,26/Mar/2015 ,265000-IT & Telecommunications,NZ900-Finance & Corporate Services,FUJITSU SERVICES LTD,1158421,"144,796.79 ",Criminal Justice Secure Email Service Management Configuration 
Ministry of Justice,MoJ HQ,31/Mar/2015 ,265000-IT & Telecommunications,NZ900-Finance & Corporate Services,FUJITSU SERVICES LTD,1158648,"144,796.79 ",Criminal Justice Secure Email Service Management Configuration 
Ministry of Justice,MoJ HQ,26/Mar/2015 ,265000-IT & Telecommunications,NZ900-Finance & Corporate Services,FUJITSU SERVICES LTD,1158421,"180,729.93 ",Monthly Fujitsu costs for Application Maintenance & Support charges for Exchange services
Ministry of Justice,MoJ HQ,31/Mar/2015 ,265000-IT & Telecommunications,NZ900-Finance & Corporate Services,FUJITSU SERVICES LTD,1158648,"180,729.93 ",Monthly Fujitsu costs for Application Maintenance & Support charges for Exchange services
Ministry of Justice,MoJ HQ,09/Mar/2015 ,265000-IT & Telecommunications,NZ900-Finance & Corporate Services,FUJITSU SERVICES LTD,1156531,"311,088.57 ",Hosting Tower Criminal Justice ServiceE Operations Production Environment and pre production enviroment
Ministry of Justice,MoJ HQ,31/Mar/2015 ,265000-IT & Telecommunications,NZ900-Finance & Corporate Services,FUJITSU SERVICES LTD,1158648,"311,088.57 ",Hosting Tower Criminal Justice ServiceE Operations Production Environment and pre production enviroment
Ministry of Justice,MoJ HQ,12/Mar/2015 ,265000-IT & Telecommunications,NZ900-Finance & Corporate Services,FUJITSU SERVICES LTD,1156861,"56,221.46 ",IT peripherals/individual ordered software and equipment
Ministry of Justice,MoJ HQ,12/Mar/2015 ,265000-IT & Telecommunications,NZ900-Finance & Corporate Services,FUJITSU SERVICES LTD,1156861,"56,221.46 ",IT peripherals/individual ordered software and equipment
Ministry of Justice,MoJ HQ,30/Mar/2015 ,265000-IT & Telecommunications,NZ900-Finance & Corporate Services,FUJITSU SERVICES LTD,1158601,"56,221.46 ",IT peripherals/individual ordered software and equipment
Ministry of Justice,MoJ HQ,10-MAR-2015,223708-Treasury Solicitors Fees - Not Advice,OH140-Policy & Reward,GOVERNMENT LEGAL DEPARTMENT,414966,"97,227.10 ",Legal costs relating to O'Brien case
Ministry of Justice,MoJ HQ,19-MAR-2015,223702-Treasury Solicitors Fees for Advice,RG107-Legal Aid,GOVERNMENT LEGAL DEPARTMENT,414196,"63,658.38 ",Litigation services
Ministry of Justice,MoJ HQ,19-MAR-2015,223702-Treasury Solicitors Fees for Advice,RG107-Legal Aid,GOVERNMENT LEGAL DEPARTMENT,414977,"37,526.94 ",Litigation services
Ministry of Justice,MoJ HQ,31/Mar/2015 ,222002-Other Property Costs,NZ406-Strategic Estates Feeder,GVA GRIMLEY LTD T/A GVA,1158651,"31,011.00 ","Service Charge for Part 5th Floor, Axis Building for the period 25/03/2015 to 23/06/2015 "
Ministry of Justice,MoJ HQ,31/Mar/2015 ,222002-Other Property Costs,NZ406-Strategic Estates Feeder,GVA GRIMLEY LTD T/A GVA,1158651,"6,202.20 ","Service Charge for Part 5th Floor, Axis Building for the period 25/03/2015 to 23/06/2016"
Ministry of Justice,MoJ HQ,19/Mar/2015 ,221000-Property Rent and Rates,NZ406-Strategic Estates Feeder,GVA GRIMLEY LTD T/A GVA,1157668,"45,431.34 ","Rent for Part 5th Floor, Axis Building for the period 25/03/2015 to 23/06/2015 "
Ministry of Justice,MoJ HQ,19/Mar/2015 ,221000-Property Rent and Rates,NZ406-Strategic Estates Feeder,GVA GRIMLEY LTD T/A GVA,1157668,"9,086.27 ","Rent for Part 5th Floor, Axis Building for the period 25/03/2015 to 23/06/2016"
Ministry of Justice,MoJ HQ,19/Mar/2015 ,221000-Property Rent and Rates,NZ406-Strategic Estates Feeder,GVA GRIMLEY LTD T/A GVA,1157668,"49,326.06 ","Rent for 4th Floor, Axis Building for the period 25/03/2015 to 23/06/2015 "
Ministry of Justice,MoJ HQ,19/Mar/2015 ,221000-Property Rent and Rates,NZ406-Strategic Estates Feeder,GVA GRIMLEY LTD T/A GVA,1157668,"9,865.21 ","Rent for 4th Floor, Axis Building for the period 25/03/2015 to 23/06/2016"
Ministry of Justice,MoJ HQ,17/Mar/2015 ,710600-Creditor < 1 year - Payable to Consolidated Fund,WW000-Balance Sheet,HM TREASURY - CFER PAYOVER,5602,"192,135.88 ",CFERS paid to the Consolidated Fund
Ministry of Justice,MoJ HQ,17/Mar/2015 ,710600-Creditor < 1 year - Payable to Consolidated Fund,WW000-Balance Sheet,HM TREASURY - CFER PAYOVER,5602,"1,972.87 ",CFERS paid to the Consolidated Fund
Ministry of Justice,MoJ HQ,17/Mar/2015 ,263000-Other Contracted Out Services,OZ501-HRD Feeder,HMRC,5603,"28,210.30 ",Civil Service Jobs Portal charges. 
Ministry of Justice,MoJ HQ,19-MAR-2015,224101-Professional Body Membership Fees,NZ500-Analytical Services,HMRC,18000047402014,"47,970.00 ",Government Operational Researcher costs
Ministry of Justice,MoJ HQ,03/Mar/2015 ,265000-IT & Telecommunications,NZ900-Finance & Corporate Services,HOME OFFICE,5520,"46,325.00 ",Home Office Technology Test Design & Consultancy Services support costs
Ministry of Justice,MoJ HQ,03/Mar/2015 ,265000-IT & Telecommunications,NZ900-Finance & Corporate Services,HOME OFFICE,5520,"9,265.00 ",Home Office Technology Test Design & Consultancy Services support costs
Ministry of Justice,MoJ HQ,16/Mar/2015 ,265000-IT & Telecommunications,NZ900-Finance & Corporate Services,HOME OFFICE,5593,"55,650.00 ",Home Office Technology Test Design & Consultancy Services support costs
Ministry of Justice,MoJ HQ,16/Mar/2015 ,265000-IT & Telecommunications,NZ900-Finance & Corporate Services,HOME OFFICE,5593,"11,130.00 ",Home Office Technology Test Design & Consultancy Services support costs
Ministry of Justice,MoJ HQ,31/Mar/2015 ,265000-IT & Telecommunications,NZ900-Finance & Corporate Services,HOME OFFICE,5690,"702,845.00 ",Steria Visor Support
Ministry of Justice,MoJ HQ,31/Mar/2015 ,265000-IT & Telecommunications,NZ900-Finance & Corporate Services,HOME OFFICE,5690,"140,569.00 ",Steria Visor Support
Ministry of Justice,MoJ HQ,10/Mar/2015 ,512000-Intangible GBV - Additions,NZ900-Finance & Corporate Services,HOME OFFICE,5558,"23,375.00 ",TW3: online tools to support collaboration and new ways of working
Ministry of Justice,MoJ HQ,26/Mar/2015 ,512000-Intangible GBV - Additions,NZ900-Finance & Corporate Services,HOME OFFICE,5680,"172,641.51 ",Transforming Rehabilitation program
Ministry of Justice,MoJ HQ,09/Mar/2015 ,223000-Other Expenditure,RB999-JPG - CJRD,HOME OFFICE,5550,"31,375.00 ",Development and migration of Track My Crime system - Final installment
Ministry of Justice,MoJ HQ,09/Mar/2015 ,223000-Other Expenditure,RB999-JPG - CJRD,HOME OFFICE,5550,"6,275.00 ",Development and migration of Track My Crime system - Final installment
Ministry of Justice,MoJ HQ,26/Mar/2015 ,223000-Other Expenditure,RB999-JPG - CJRD,HOME OFFICE,5679,"646,728.97 ",50% contribution to The Salvation Army Human Trafficking Contract (Q3 Oct-Dec 2014)
Ministry of Justice,MoJ HQ,26/Mar/2015 ,265000-IT & Telecommunications,NZ900-Finance & Corporate Services,HOME OFFICE IT,5681,"32,182.00 ",Criminal Justice Secure Exchange Re-Procurement Testing Services under the Framework between MoJ and Home Office IT - Test Programme Management
Ministry of Justice,MoJ HQ,26/Mar/2015 ,512000-Intangible GBV - Additions,NX900-MOJ Shared Services,HP ENTERPRISE SERVICES (UK) LTD,1158438,"464,976.34 ",Hewlett Packard Merge activities to Merge the Aramis & Phoenix Oracle platforms
Ministry of Justice,MoJ HQ,16/Mar/2015 ,265000-IT & Telecommunications,NZ900-Finance & Corporate Services,HP ENTERPRISE SERVICES (UK) LTD,1157245,"36,700.44 ",Data Centre Transition Costs
Ministry of Justice,MoJ HQ,16/Mar/2015 ,265000-IT & Telecommunications,NZ900-Finance & Corporate Services,HP ENTERPRISE SERVICES (UK) LTD,1157245,"7,340.09 ",Data Centre Transition Costs
Ministry of Justice,MoJ HQ,30/Mar/2015 ,265000-IT & Telecommunications,NZ900-Finance & Corporate Services,HP ENTERPRISE SERVICES (UK) LTD,1158606,"62,135.44 ",Monthly HP General Services charges
Ministry of Justice,MoJ HQ,26/Mar/2015 ,265000-IT & Telecommunications,NZ900-Finance & Corporate Services,HP ENTERPRISE SERVICES (UK) LTD,1158438,"71,775.45 ",Monthly HP NOMS ICT Telephony charges
Ministry of Justice,MoJ HQ,26/Mar/2015 ,265000-IT & Telecommunications,NZ900-Finance & Corporate Services,HP ENTERPRISE SERVICES (UK) LTD,1158438,"14,355.09 ",Monthly HP Telephony charges
Ministry of Justice,MoJ HQ,05/Mar/2015 ,265000-IT & Telecommunications,NZ900-Finance & Corporate Services,HP ENTERPRISE SERVICES (UK) LTD,1156280,"136,793.89 ",Monthly HP Network Services charges
Ministry of Justice,MoJ HQ,31/Mar/2015 ,265000-IT & Telecommunications,NZ900-Finance & Corporate Services,HP ENTERPRISE SERVICES (UK) LTD,1158652,"235,581.61 ",Monthly HP Security charges
Ministry of Justice,MoJ HQ,31/Mar/2015 ,265000-IT & Telecommunications,NZ900-Finance & Corporate Services,HP ENTERPRISE SERVICES (UK) LTD,1158652,"271,980.61 ",Monthly HP System Integration and Management  Services charges
Ministry of Justice,MoJ HQ,31/Mar/2015 ,265000-IT & Telecommunications,NZ900-Finance & Corporate Services,HP ENTERPRISE SERVICES (UK) LTD,6910,"399,187.60 ",Monthly HP System Integration and Management  Services charges
Ministry of Justice,MoJ HQ,31/Mar/2015 ,265000-IT & Telecommunications,NZ900-Finance & Corporate Services,HP ENTERPRISE SERVICES (UK) LTD,6907,"403,068.89 ",Monthly HP General Services charges
Ministry of Justice,MoJ HQ,31/Mar/2015 ,265000-IT & Telecommunications,NZ900-Finance & Corporate Services,HP ENTERPRISE SERVICES (UK) LTD,1158652,"542,691.70 ",Monthly HP Telephony charges
Ministry of Justice,MoJ HQ,31/Mar/2015 ,265000-IT & Telecommunications,NZ900-Finance & Corporate Services,HP ENTERPRISE SERVICES (UK) LTD,1158652,"108,538.34 ",Monthly HP Telephony charges
Ministry of Justice,MoJ HQ,31/Mar/2015 ,265000-IT & Telecommunications,NZ900-Finance & Corporate Services,HP ENTERPRISE SERVICES (UK) LTD,6909,"576,766.39 ",Monthly HP Network Services charges
Ministry of Justice,MoJ HQ,31/Mar/2015 ,265000-IT & Telecommunications,NZ900-Finance & Corporate Services,HP ENTERPRISE SERVICES (UK) LTD,6908,"625,936.64 ",Monthly HP Hosting charges
Ministry of Justice,MoJ HQ,31/Mar/2015 ,265000-IT & Telecommunications,NZ900-Finance & Corporate Services,HP ENTERPRISE SERVICES (UK) LTD,6906,"1,267,382.75 ",Monthly HP Application Maintenance & Support charges
Ministry of Justice,MoJ HQ,31/Mar/2015 ,265000-IT & Telecommunications,NZ900-Finance & Corporate Services,HP ENTERPRISE SERVICES (UK) LTD,6911,"1,533,627.12 ",Monthly HP End User Computing charges
Ministry of Justice,MoJ HQ,09/Mar/2015 ,512000-Intangible GBV - Additions,NZ900-Finance & Corporate Services,HP ENTERPRISE SERVICES (UK) LTD,1156553,"23,892.00 ",NOMS: Browser Neutrality
Ministry of Justice,MoJ HQ,26/Mar/2015 ,512000-Intangible GBV - Additions,NZ900-Finance & Corporate Services,HP ENTERPRISE SERVICES (UK) LTD,1158438,"66,734.24 ",Transforming Rehabilitation program
Ministry of Justice,MoJ HQ,05/Mar/2015 ,512000-Intangible GBV - Additions,NZ900-Finance & Corporate Services,HP ENTERPRISE SERVICES (UK) LTD,1156280,"83,366.96 ",Transforming Rehabilitation program
Ministry of Justice,MoJ HQ,05/Mar/2015 ,265000-IT & Telecommunications,NZ900-Finance & Corporate Services,I2N LTD,1156281,"25,000.00 ",i2N - Support & Maintenance
Ministry of Justice,MoJ HQ,05/Mar/2015 ,265000-IT & Telecommunications,NZ900-Finance & Corporate Services,I2N LTD,1156281,"25,000.00 ",i2N - Support & Maintenance
Ministry of Justice,MoJ HQ,05/Mar/2015 ,265000-IT & Telecommunications,NZ900-Finance & Corporate Services,I2N LTD,1156281,"25,000.00 ",i2N - Support & Maintenance
Ministry of Justice,MoJ HQ,05/Mar/2015 ,265000-IT & Telecommunications,NZ900-Finance & Corporate Services,I2N LTD,1156281,"25,000.00 ",i2N - Support & Maintenance
Ministry of Justice,MoJ HQ,02/Mar/2015 ,265000-IT & Telecommunications,LZ600-Transforming Justice,I2N LTD,1156033,"50,000.00 ",Provision of software services
Ministry of Justice,MoJ HQ,42089,223000-Other Expenditure,NZ900-Finance & Corporate Services,IPSOS MORI (M&ORI LTD),1158440,"38,747.70 ",Milestone payment for varying paths to justice project
Ministry of Justice,MoJ HQ,42089,223000-Other Expenditure,NZ900-Finance & Corporate Services,IPSOS MORI (M&ORI LTD),1158440,"28,985.00 ",Payment of milestone on the Not For Profit Providers Survey Advice
Ministry of Justice,MoJ HQ,26/Mar/2015 ,266000-Judicial Costs,LZ600-Transforming Justice,JORDAN PUBLISHING LTD,1158444,"274,140.40 ",Subscription renewals January 2015 to December 2015
Ministry of Justice,MoJ HQ,30/Mar/2015 ,512000-Intangible GBV - Additions,NZ900-Finance & Corporate Services,KAINOS SOFTWARE LTD,1158608,"83,901.33 ",Common Platform prog (creating unified common IT platform in HMCTS) - Jury Man. Service  
Ministry of Justice,MoJ HQ,31/Mar/2015 ,532000-Tangible GBV - Additions,NZ900-Finance & Corporate Services,KENT POLICE & CRIME COMMISSIONER,1158655,"65,927.00 ",Kent Criminal Justice Commissioner Video Kit
Ministry of Justice,MoJ HQ,31/Mar/2015 ,532000-Tangible GBV - Additions,NZ900-Finance & Corporate Services,KENT POLICE & CRIME COMMISSIONER,1158655,"13,185.40 ",Kent Criminal Justice Commissioner Video Kit
Ministry of Justice,MoJ HQ,05/Mar/2015 ,264000-Consultancy,RC999-Criminal Justice Group - OMS,KPMG,1156293,"54,967.00 ",Financial Services to support the Transforming Youth Custody programme
Ministry of Justice,MoJ HQ,05/Mar/2015 ,264000-Consultancy,RC999-Criminal Justice Group - OMS,KPMG,1156293,"10,993.40 ",Financial Services to support the Transforming Youth Custody programme
Ministry of Justice,MoJ HQ,05/Mar/2015 ,264000-Consultancy,RC999-Criminal Justice Group - OMS,KPMG,1156293,"67,764.00 ",Financial Services to support the Transforming Youth Custody programme
Ministry of Justice,MoJ HQ,05/Mar/2015 ,264000-Consultancy,RC999-Criminal Justice Group - OMS,KPMG,1156293,"13,552.80 ",Financial Services to support the Transforming Youth Custody programme
Ministry of Justice,MoJ HQ,26/Mar/2015 ,223000-Other Expenditure,NZ406-Strategic Estates Feeder,L&P (PSCS),1158448,"48,302.16 ","Furniture order for Regional Hubs (TW3) for 4A, 2C & 8th Floor, 102 Petty France."
Ministry of Justice,MoJ HQ,26/Mar/2015 ,223000-Other Expenditure,NZ406-Strategic Estates Feeder,L&P (PSCS),1158448,"9,660.43 ","Furniture order for Regional Hubs (TW3) for 4A, 2C & 8th Floor, 102 Petty France."
Ministry of Justice,MoJ HQ,05/Mar/2015 ,265000-IT & Telecommunications,NZ900-Finance & Corporate Services,LEVEL 3 COMMUNICATIONS (UK) LTD,1156299,"23,850.00 ","Extension of the Secure Managed Interconnect Service - Monthly Maintenance Charge, Additional monthly charge for OASYS-R Project, ATOS Charges & Video C&W Charges"
Ministry of Justice,MoJ HQ,05/Mar/2015 ,265000-IT & Telecommunications,NZ900-Finance & Corporate Services,LEVEL 3 COMMUNICATIONS (UK) LTD,1156299,"4,770.00 ","Extension of the Secure Managed Interconnect Service - Monthly Maintenance Charge, Additional monthly charge for OASYS-R Project, ATOS Charges & Video C&W Charges"
Ministry of Justice,MoJ HQ,05/Mar/2015 ,262000-SCA Costs,OZ501-HRD Feeder,LIBERATA UK LTD,1156302,"22,619.52 ",Charges for compensation to eligible judges for historic underpayments of fees
Ministry of Justice,MoJ HQ,05/Mar/2015 ,223001-Printing Postage and Office expenditure,NZ406-Strategic Estates Feeder,LIBERATA UK LTD,1156302,"71,166.23 ",Printroom costs for Design/Print/Reprographic services (Non VAT Recoverable)
Ministry of Justice,MoJ HQ,05/Mar/2015 ,223001-Printing Postage and Office expenditure,NZ406-Strategic Estates Feeder,LIBERATA UK LTD,1156302,"43,597.80 ",Printroom costs (Feb 15 / Mar 15)
Ministry of Justice,MoJ HQ,05/Mar/2015 ,223001-Printing Postage and Office expenditure,NZ406-Strategic Estates Feeder,LIBERATA UK LTD,1156302,"8,719.56 ",Printroom costs (Feb 15 / Mar 15)
Ministry of Justice,MoJ HQ,12/Mar/2015 ,512000-Intangible GBV - Additions,NX900-MOJ Shared Services,LIBERATA UK LTD,1156942,"191,963.00 ",Purchase of Oracle Liberata asset
Ministry of Justice,MoJ HQ,05/Mar/2015 ,512000-Intangible GBV - Additions,NX900-MOJ Shared Services,LIBERATA UK LTD,1156303,"193,573.00 ",Liberata Merge activities to Merge the Aramis & Phoenix Oracle platforms
Ministry of Justice,MoJ HQ,12/Mar/2015 ,262000-SCA Costs,NX900-MOJ Shared Services,LIBERATA UK LTD,1156943,"409,531.99 ",Payroll services provided by Liberata
Ministry of Justice,MoJ HQ,05/Mar/2015 ,512000-Intangible GBV - Additions,NX900-MOJ Shared Services,LIBERATA UK LTD,1156303,"928,214.00 ",Liberata Merge activities to Merge the Aramis & Phoenix Oracle platforms
Ministry of Justice,MoJ HQ,31/Mar/2015 ,512000-Intangible GBV - Additions,NX900-MOJ Shared Services,LIBERATA UK LTD,6912,"928,214.00 ",Liberata Merge activities to Merge the Aramis & Phoenix Oracle platforms
Ministry of Justice,MoJ HQ,19/Mar/2015 ,262000-SCA Costs,NX900-MOJ Shared Services,LIBERATA UK LTD,6892,"99,347.70 ",Liberata finance and accounting service provided
Ministry of Justice,MoJ HQ,19/Mar/2015 ,262000-SCA Costs,NX900-MOJ Shared Services,LIBERATA UK LTD,6892,"808,185.55 ",Liberata finance and accounting service provided
Ministry of Justice,MoJ HQ,30/Mar/2015 ,265000-IT & Telecommunications,NZ900-Finance & Corporate Services,LOCKHEED MARTIN UK LIMITED,1158611,"24,066.86 ",Transition Assurance for new System Integration and Management  Tower
Ministry of Justice,MoJ HQ,31/Mar/2015 ,265000-IT & Telecommunications,NZ900-Finance & Corporate Services,LOCKHEED MARTIN UK LIMITED,1158656,"88,883.66 ",Transition Assurance for new System Integration and Management  Tower
Ministry of Justice,MoJ HQ,31/Mar/2015 ,265000-IT & Telecommunications,NZ900-Finance & Corporate Services,LOCKHEED MARTIN UK LIMITED,6914,"157,181.45 ",Transition Assurance for new System Integration and Management  Tower
Ministry of Justice,MoJ HQ,31/Mar/2015 ,265000-IT & Telecommunications,NZ900-Finance & Corporate Services,LOCKHEED MARTIN UK LIMITED,6913,"225,821.81 ",Transition Assurance for new System Integration and Management  Tower
Ministry of Justice,MoJ HQ,31/Mar/2015 ,265000-IT & Telecommunications,NZ900-Finance & Corporate Services,LOCKHEED MARTIN UK LIMITED,1158656,"256,002.43 ",Transition Assurance for new System Integration and Management  Tower
Ministry of Justice,MoJ HQ,30/Mar/2015 ,265000-IT & Telecommunications,NZ900-Finance & Corporate Services,LOCKHEED MARTIN UK LIMITED,1158611,"54,556.04 ",Transition Assurance for new System Integration and Management  Tower
Ministry of Justice,MoJ HQ,31/Mar/2015 ,265000-IT & Telecommunications,NZ900-Finance & Corporate Services,LOCKHEED MARTIN UK LIMITED,1158656,"107,094.56 ",Transition Assurance for new System Integration and Management  Tower
Ministry of Justice,MoJ HQ,31/Mar/2015 ,265000-IT & Telecommunications,NZ900-Finance & Corporate Services,LOCKHEED MARTIN UK LIMITED,6917,"396,561.00 ",Monthly Lockheed Martin costs for System Integration and Management  charges
Ministry of Justice,MoJ HQ,31/Mar/2015 ,265000-IT & Telecommunications,NZ900-Finance & Corporate Services,LOCKHEED MARTIN UK LIMITED,6916,"562,488.55 ",Monthly Lockheed Martin costs for System Integration and Management  charges
Ministry of Justice,MoJ HQ,31/Mar/2015 ,265000-IT & Telecommunications,NZ900-Finance & Corporate Services,LOCKHEED MARTIN UK LIMITED,6915,"567,652.83 ",Monthly Lockheed Martin costs for System Integration and Management  charges
Ministry of Justice,MoJ HQ,31/Mar/2015 ,265000-IT & Telecommunications,NZ900-Finance & Corporate Services,LOCKHEED MARTIN UK LIMITED,6918,"1,331,068.21 ",R&M Non Labour charges 
Ministry of Justice,MoJ HQ,31/Mar/2015 ,265000-IT & Telecommunications,LZ600-Transforming Justice,LOCKHEED MARTIN UK LIMITED,1158656,"116,974.54 ",Run and maintain service desk for NPS ICT six months 
Ministry of Justice,MoJ HQ,31/Mar/2015 ,265000-IT & Telecommunications,LZ600-Transforming Justice,LOCKHEED MARTIN UK LIMITED,1158656,"232,184.00 ",Run and maintain service desk for NPS ICT six months 
Ministry of Justice,MoJ HQ,30/Mar/2015 ,264000-Consultancy,NZ900-Finance & Corporate Services,MCKINSEY & CO INC. UNITED KINGDOM,1158613,"243,700.00 ",Professional fees and support services in relation to Digital Strategy
Ministry of Justice,MoJ HQ,30/Mar/2015 ,264000-Consultancy,NZ900-Finance & Corporate Services,MCKINSEY & CO INC. UNITED KINGDOM,1158613,"48,740.00 ",Professional fees and support services in relation to Digital Strategy
Ministry of Justice,MoJ HQ,42094,263000-Other Contracted Out Services,RC999-Criminal Justice Group - OMS,MEDOMSLEY TRAINING SERVICES LTD,1158658,"185,196.46 ",Operation costs for Hassockfield Secure Training Centre for young people in custody
Ministry of Justice,MoJ HQ,42090,263000-Other Contracted Out Services,RC999-Criminal Justice Group - OMS,MEDOMSLEY TRAINING SERVICES LTD,1158577,"205,773.84 ",Operation costs for Hassockfield Secure Training Centre for young people in custody
Ministry of Justice,MoJ HQ,26/Mar/2015 ,265000-IT & Telecommunications,NZ900-Finance & Corporate Services,METHODS ADVISORY LTD,1158463,"11,014.19 ","Provision of vendor workshops and technical evaluation report to Legal Aid Agency,"
Ministry of Justice,MoJ HQ,26/Mar/2015 ,265000-IT & Telecommunications,NZ900-Finance & Corporate Services,METHODS ADVISORY LTD,1158463,"-11,014.19 ","Provision of vendor workshops and technical evaluation report to Legal Aid Agency,"
Ministry of Justice,MoJ HQ,26/Mar/2015 ,265000-IT & Telecommunications,NZ900-Finance & Corporate Services,METHODS ADVISORY LTD,1158463,"55,070.95 ","Provision of vendor workshops and technical evaluation report to Legal Aid Agency,"
Ministry of Justice,MoJ HQ,26/Mar/2015 ,265000-IT & Telecommunications,NZ900-Finance & Corporate Services,METHODS ADVISORY LTD,1158463,"11,014.19 ","Provision of vendor workshops and technical evaluation report to Legal Aid Agency,"
Ministry of Justice,MoJ HQ,02/Mar/2015 ,265000-IT & Telecommunications,NZ900-Finance & Corporate Services,METHODS ADVISORY LTD,1156050,"22,162.50 ",Transforming Rehabilitiation Programme - Charges relating to Data extraction and Archive Method
Ministry of Justice,MoJ HQ,02/Mar/2015 ,265000-IT & Telecommunications,NZ900-Finance & Corporate Services,METHODS ADVISORY LTD,1156050,"4,432.50 ",Transforming Rehabilitiation Programme - Charges relating to Data extraction and Archive Method
Ministry of Justice,MoJ HQ,02/Mar/2015 ,265000-IT & Telecommunications,NZ900-Finance & Corporate Services,METHODS ADVISORY LTD,1156050,"27,562.50 ",National Probation Service - costs relating to scoping for victims
Ministry of Justice,MoJ HQ,02/Mar/2015 ,265000-IT & Telecommunications,NZ900-Finance & Corporate Services,METHODS ADVISORY LTD,1156050,"5,512.50 ",National Probation Service - costs relating to scoping for victims
Ministry of Justice,MoJ HQ,05/Mar/2015 ,265000-IT & Telecommunications,NZ900-Finance & Corporate Services,METHODS ADVISORY LTD,1156325,"32,498.50 ",MoJ Archiving work package
Ministry of Justice,MoJ HQ,05/Mar/2015 ,265000-IT & Telecommunications,NZ900-Finance & Corporate Services,METHODS ADVISORY LTD,1156325,"6,499.70 ",MoJ Archiving work package
Ministry of Justice,MoJ HQ,23/Mar/2015 ,265000-IT & Telecommunications,NZ900-Finance & Corporate Services,METHODS ADVISORY LTD,1158185,"30,000.00 ",Produce service inoperability architecture for each Criminal Justice Service Efficiency service
Ministry of Justice,MoJ HQ,23/Mar/2015 ,265000-IT & Telecommunications,NZ900-Finance & Corporate Services,METHODS ADVISORY LTD,1158185,"6,000.00 ",Produce service inoperability architecture for each Criminal Justice Service Efficiency service
Ministry of Justice,MoJ HQ,23/Mar/2015 ,265000-IT & Telecommunications,NZ900-Finance & Corporate Services,METHODS ADVISORY LTD,1158185,"30,000.00 ",Costs relating to the production of Service Management design
Ministry of Justice,MoJ HQ,23/Mar/2015 ,265000-IT & Telecommunications,NZ900-Finance & Corporate Services,METHODS ADVISORY LTD,1158185,"6,000.00 ",Costs relating to the production of Service Management design
Ministry of Justice,MoJ HQ,23/Mar/2015 ,265000-IT & Telecommunications,NZ900-Finance & Corporate Services,METHODS ADVISORY LTD,1158185,"35,000.00 ",Produce technical specifications relating to the creation of logical & physical information systems & informationm architectures for each Criminal Justice Service Effciemcy service 
Ministry of Justice,MoJ HQ,23/Mar/2015 ,265000-IT & Telecommunications,NZ900-Finance & Corporate Services,METHODS ADVISORY LTD,1158185,"7,000.00 ",Produce technical specifications relating to the creation of logical & physical information systems & informationm architectures for each Criminal Justice Service Effciemcy service 
Ministry of Justice,MoJ HQ,23/Mar/2015 ,265000-IT & Telecommunications,NZ900-Finance & Corporate Services,METHODS ADVISORY LTD,1158185,"40,000.00 ",Production of transition architectures for the individual Criminal Justice Service Efficiency services
Ministry of Justice,MoJ HQ,23/Mar/2015 ,265000-IT & Telecommunications,NZ900-Finance & Corporate Services,METHODS ADVISORY LTD,1158185,"8,000.00 ",Production of transition architectures for the individual Criminal Justice Service Efficiency services
Ministry of Justice,MoJ HQ,09/Mar/2015 ,222003-CIS Labour TFM Estates,NZ406-Strategic Estates Feeder,MITIE JUSTICE LTD,1156598,"59,078.25 ",Fixed Soft Services for the MOJ HQ Dec.14 - Mar15.                  3.1 Security
Ministry of Justice,MoJ HQ,26/Mar/2015 ,221000-Property Rent and Rates,NZ406-Strategic Estates Feeder,MITSUBISHI ESTATE LONDON LTD,1158465,"1,030,311.95 ",Rent for Clive House for the period 25/03/2015 to 23/06/2015 
Ministry of Justice,MoJ HQ,12-MAR-2015,223706-Counsel's Fees (Not Advice),RG701-CFLAP Programme Office (JPG),MS CHRISTINA LAMBERT QC,189289,"95,315.00 ",Counsel to the Hillsborough Inquests 
Ministry of Justice,MoJ HQ,42075,263000-Other Contracted Out Services,QZ500-Arms Length Bodies (CPG),NATIONAL SAVINGS & INVESTMENTS,5563,"449,593.39 ",Provision of Court Funds Office service for the 2014/15 Financial Year
Ministry of Justice,MoJ HQ,42075,263000-Other Contracted Out Services,QZ500-Arms Length Bodies (CPG),NATIONAL SAVINGS & INVESTMENTS,5564,"454,083.79 ",Provision of Court Funds Office service for the 2014/15 Financial Year
Ministry of Justice,MoJ HQ,42075,263000-Other Contracted Out Services,QZ500-Arms Length Bodies (CPG),NATIONAL SAVINGS & INVESTMENTS,5565,"42,868.80 ",Service Improvement Costs for 2014/15 Financial Year
Ministry of Justice,MoJ HQ,42086,245000-Grants in Aid to NDPBs,QZ600-CPG Other,OFFICE FOR LEGAL COMPLAINTS,5658,"915,000.00 ",Grant
Ministry of Justice,MoJ HQ,30/Mar/2015 ,265000-IT & Telecommunications,NX900-MOJ Shared Services,ORACLE CORPORATION UK LTD,1158617,"59,851.56 ",Licence upgrades required for the Phoenix Oracle platform
Ministry of Justice,MoJ HQ,30/Mar/2015 ,265000-IT & Telecommunications,NX900-MOJ Shared Services,ORACLE CORPORATION UK LTD,1158617,"11,970.31 ",Licence upgrades required for the Phoenix Oracle platform
Ministry of Justice,MoJ HQ,19/Mar/2015 ,265000-IT & Telecommunications,NZ900-Finance & Corporate Services,ORANGE (EVERYTHING EVERYWHERE LTD),1157829,0.01 ,Monthly mobile charges service provided to the NOMS Estate
Ministry of Justice,MoJ HQ,19/Mar/2015 ,265000-IT & Telecommunications,NZ900-Finance & Corporate Services,ORANGE (EVERYTHING EVERYWHERE LTD),1157829,906.53 ,Monthly mobile charges service provided to the NOMS Estate
Ministry of Justice,MoJ HQ,19/Mar/2015 ,265000-IT & Telecommunications,NZ900-Finance & Corporate Services,ORANGE (EVERYTHING EVERYWHERE LTD),1157829,-906.53 ,Monthly mobile charges service provided to the NOMS Estate
Ministry of Justice,MoJ HQ,19/Mar/2015 ,265000-IT & Telecommunications,NZ900-Finance & Corporate Services,ORANGE (EVERYTHING EVERYWHERE LTD),1157829,"22,663.25 ",Monthly mobile charges service provided to the NOMS Estate
Ministry of Justice,MoJ HQ,19/Mar/2015 ,265000-IT & Telecommunications,NZ900-Finance & Corporate Services,ORANGE (EVERYTHING EVERYWHERE LTD),1157829,"4,532.65 ",Monthly mobile charges service provided to the NOMS Estate
Ministry of Justice,MoJ HQ,19/Mar/2015 ,265000-IT & Telecommunications,NZ900-Finance & Corporate Services,ORANGE (EVERYTHING EVERYWHERE LTD),1157829,167.60 ,Monthly mobile charges service provided to the NOMS Estate
Ministry of Justice,MoJ HQ,19/Mar/2015 ,265000-IT & Telecommunications,NZ900-Finance & Corporate Services,ORANGE (EVERYTHING EVERYWHERE LTD),1157829,0.01 ,Monthly mobile charges service provided to the NOMS Estate
Ministry of Justice,MoJ HQ,19/Mar/2015 ,265000-IT & Telecommunications,NZ900-Finance & Corporate Services,ORANGE (EVERYTHING EVERYWHERE LTD),1157829,"4,606.76 ",Monthly mobile charges service provided to the NOMS Estate
Ministry of Justice,MoJ HQ,19/Mar/2015 ,265000-IT & Telecommunications,NZ900-Finance & Corporate Services,ORANGE (EVERYTHING EVERYWHERE LTD),1157829,"-4,606.76 ",Monthly mobile charges service provided to the NOMS Estate
Ministry of Justice,MoJ HQ,19/Mar/2015 ,265000-IT & Telecommunications,NZ900-Finance & Corporate Services,ORANGE (EVERYTHING EVERYWHERE LTD),1157829,"23,033.80 ",Monthly mobile charges service provided to the NOMS Estate
Ministry of Justice,MoJ HQ,19/Mar/2015 ,265000-IT & Telecommunications,NZ900-Finance & Corporate Services,ORANGE (EVERYTHING EVERYWHERE LTD),1157829,168.08 ,Monthly mobile charges service provided to the NOMS Estate
Ministry of Justice,MoJ HQ,19/Mar/2015 ,265000-IT & Telecommunications,NZ900-Finance & Corporate Services,ORANGE (EVERYTHING EVERYWHERE LTD),1157829,"4,606.76 ",Monthly mobile charges service provided to the NOMS Estate
Ministry of Justice,MoJ HQ,19/Mar/2015 ,265000-IT & Telecommunications,NZ900-Finance & Corporate Services,ORANGE (EVERYTHING EVERYWHERE LTD),1157829,"23,021.23 ",Monthly mobile charges service provided to the NOMS Estate
Ministry of Justice,MoJ HQ,19/Mar/2015 ,265000-IT & Telecommunications,NZ900-Finance & Corporate Services,ORANGE (EVERYTHING EVERYWHERE LTD),1157829,"4,604.25 ",Monthly mobile charges service provided to the NOMS Estate
Ministry of Justice,MoJ HQ,19/Mar/2015 ,265000-IT & Telecommunications,NZ900-Finance & Corporate Services,ORANGE (EVERYTHING EVERYWHERE LTD),1157829,357.74 ,Monthly mobile charges service provided to the NOMS Estate
Ministry of Justice,MoJ HQ,30/Mar/2015 ,265000-IT & Telecommunications,NZ900-Finance & Corporate Services,ORANGE (EVERYTHING EVERYWHERE LTD),1158618,-0.02 ,TW3: online tools to support collaboration and new ways of working
Ministry of Justice,MoJ HQ,30/Mar/2015 ,265000-IT & Telecommunications,NZ900-Finance & Corporate Services,ORANGE (EVERYTHING EVERYWHERE LTD),1158618,"25,488.17 ",TW3: online tools to support collaboration and new ways of working
Ministry of Justice,MoJ HQ,30/Mar/2015 ,265000-IT & Telecommunications,NZ900-Finance & Corporate Services,ORANGE (EVERYTHING EVERYWHERE LTD),1158618,27.09 ,TW3: online tools to support collaboration and new ways of working
Ministry of Justice,MoJ HQ,30/Mar/2015 ,265000-IT & Telecommunications,NZ900-Finance & Corporate Services,ORANGE (EVERYTHING EVERYWHERE LTD),1158618,"5,097.63 ",TW3: online tools to support collaboration and new ways of working
Ministry of Justice,MoJ HQ,09-MAR-2015,224102-Training Course,LG105-Strategy Planning and Performance,OXFORD SAID BUSINESS SCHOOL LTD,0000037809,"25,000.00 ",Staff attendance at a Major Projects Leadership Academy course
Ministry of Justice,MoJ HQ,16/Mar/2015 ,266000-Judicial Costs,LZ600-Transforming Justice,OXFORD UNIVERSITY PRESS,1157326,"35,869.87 ",Legal pubicaltions for judges/courts
Ministry of Justice,MoJ HQ,19/Mar/2015 ,264000-Consultancy,RC999-Criminal Justice Group - OMS,PINSENT MASONS LLP,1157862,"21,608.00 ",Legal Consultancy for the Transforming Youth Custody programme
Ministry of Justice,MoJ HQ,42068,212001-Agency staff,NZ401-Finance Group Feeder,PRICEWATERHOUSECOOPERS LLP (PWC),1156359,"21,235.30 ",To provide specialist internal audit resources to assist in the delivery of the audit programme
Ministry of Justice,MoJ HQ,42068,212001-Agency staff,NZ401-Finance Group Feeder,PRICEWATERHOUSECOOPERS LLP (PWC),1156359,"4,247.06 ",To provide specialist internal audit resources to assist in the delivery of the audit programme
Ministry of Justice,MoJ HQ,42093,212001-Agency staff,NZ401-Finance Group Feeder,PRICEWATERHOUSECOOPERS LLP (PWC),1158620,"24,956.00 ",To provide specialist internal audit resources to assist in the delivery of the audit programme
Ministry of Justice,MoJ HQ,42093,212001-Agency staff,NZ401-Finance Group Feeder,PRICEWATERHOUSECOOPERS LLP (PWC),1158620,"4,991.20 ",To provide specialist internal audit resources to assist in the delivery of the audit programme
Ministry of Justice,MoJ HQ,30/Mar/2015 ,263000-Other Contracted Out Services,OZ501-HRD Feeder,PUNTER SOUTHALL LTD,1158621,"39,175.00 ",Provision of administration and pension payroll services for the Judicial Pension Schemes
Ministry of Justice,MoJ HQ,30/Mar/2015 ,263000-Other Contracted Out Services,OZ501-HRD Feeder,PUNTER SOUTHALL LTD,1158621,"7,835.00 ",Provision of administration and pension payroll services for the Judicial Pension Schemes
Ministry of Justice,MoJ HQ,23/Mar/2015 ,263000-Other Contracted Out Services,OZ501-HRD Feeder,PUNTER SOUTHALL LTD,1158245,"10,000.00 ",Provision of administration and pension payroll services for the Judicial Pension Schemes
Ministry of Justice,MoJ HQ,23/Mar/2015 ,263000-Other Contracted Out Services,OZ501-HRD Feeder,PUNTER SOUTHALL LTD,1158245,"-10,000.00 ",Provision of administration and pension payroll services for the Judicial Pension Schemes
Ministry of Justice,MoJ HQ,23/Mar/2015 ,263000-Other Contracted Out Services,OZ501-HRD Feeder,PUNTER SOUTHALL LTD,1158245,"50,000.00 ",Provision of administration and pension payroll services for the Judicial Pension Schemes
Ministry of Justice,MoJ HQ,23/Mar/2015 ,263000-Other Contracted Out Services,OZ501-HRD Feeder,PUNTER SOUTHALL LTD,1158245,"10,000.00 ",Provision of administration and pension payroll services for the Judicial Pension Schemes
Ministry of Justice,MoJ HQ,31/Mar/2015 ,265000-IT & Telecommunications,NZ900-Finance & Corporate Services,QINETIQ LTD,1158661,"300,000.00 ",Protective Security Network (PSN) Connectivity Legacy--Protective Monitoring
Ministry of Justice,MoJ HQ,42082,223000-Other Expenditure,NZ900-Finance & Corporate Services,RAND EUROPE,1157878,"35,757.25 ",Milestone payment for Peterborough social impact bond 
Ministry of Justice,MoJ HQ,31/Mar/2015 ,212001-Agency staff,NZ900-Finance & Corporate Services,REED SPECIALIST RECRUITMENT,1158663,"22,822.00 ",Interim professional staff (IT)
Ministry of Justice,MoJ HQ,31/Mar/2015 ,212001-Agency staff,NZ900-Finance & Corporate Services,REED SPECIALIST RECRUITMENT,1158663,"4,564.40 ",Interim professional staff (IT)
Ministry of Justice,MoJ HQ,26/Mar/2015 ,532000-Tangible GBV - Additions,NZ406-Strategic Estates Feeder,SHEPHERD CONSTRUCTION LTD,1158516,"150,000.00 ",Capital Works - Vehicle Blocker 102 Petty France ; Failed Gates 102 Petty France; Public Announcment Fire Alarm Clive House
Ministry of Justice,MoJ HQ,26/Mar/2015 ,532000-Tangible GBV - Additions,NZ406-Strategic Estates Feeder,SHEPHERD CONSTRUCTION LTD,1158516,"30,000.00 ",Capital Works - Vehicle Blocker 102 Petty France ; Failed Gates 102 Petty France; Public Announcment Fire Alarm Clive House
Ministry of Justice,MoJ HQ,09/Mar/2015 ,532000-Tangible GBV - Additions,NZ406-Strategic Estates Feeder,SHEPHERD CONSTRUCTION LTD,1156657,"207,500.00 ",Capital Works - Vehicle Blocker 102 Petty France ; Failed Gates 102 Petty France; Public Announcment Fire Alarm Clive House
Ministry of Justice,MoJ HQ,09/Mar/2015 ,532000-Tangible GBV - Additions,NZ406-Strategic Estates Feeder,SHEPHERD CONSTRUCTION LTD,1156657,"41,500.00 ",Capital Works - Vehicle Blocker 102 Petty France ; Failed Gates 102 Petty France; Public Announcment Fire Alarm Clive House
Ministry of Justice,MoJ HQ,26/Mar/2015 ,265000-IT & Telecommunications,NZ900-Finance & Corporate Services,SOLIRIUS LTD,1158522,"21,200.00 ",Application Management Architecture Services
Ministry of Justice,MoJ HQ,26/Mar/2015 ,265000-IT & Telecommunications,NZ900-Finance & Corporate Services,SOLIRIUS LTD,1158522,"4,240.00 ",Application Management Architecture Services
Ministry of Justice,MoJ HQ,23/Mar/2015 ,265000-IT & Telecommunications,NZ900-Finance & Corporate Services,SOPRA STERIA LTD,1158284,"21,686.16 ",Exit and Transition costs for legacy contracts
Ministry of Justice,MoJ HQ,30/Mar/2015 ,265000-IT & Telecommunications,NZ900-Finance & Corporate Services,SOPRA STERIA LTD,1158628,"63,980.03 ",STERIA OMNI Service Integration and Management - Telephony Charges
Ministry of Justice,MoJ HQ,30/Mar/2015 ,265000-IT & Telecommunications,NZ900-Finance & Corporate Services,SOPRA STERIA LTD,1158628,"65,805.69 ",STERIA OMNI Network - Telephony Charges
Ministry of Justice,MoJ HQ,30/Mar/2015 ,265000-IT & Telecommunications,NZ900-Finance & Corporate Services,SOPRA STERIA LTD,1158628,"13,161.14 ",STERIA OMNI Network - Telephony Charges
Ministry of Justice,MoJ HQ,31/Mar/2015 ,265000-IT & Telecommunications,NZ900-Finance & Corporate Services,SOPRA STERIA LTD,6924,"92,046.72 ",OMNI - Application Maintenance and Support Monthly Charge
Ministry of Justice,MoJ HQ,31/Mar/2015 ,265000-IT & Telecommunications,NZ900-Finance & Corporate Services,SOPRA STERIA LTD,6921,"614,000.34 ",OMNI - Application Maintenance and Support Monthly Charge
Ministry of Justice,MoJ HQ,31/Mar/2015 ,265000-IT & Telecommunications,NZ900-Finance & Corporate Services,SOPRA STERIA LTD,6922,"879,158.38 ",OMNI - Hosting Environment Monthly Charge
Ministry of Justice,MoJ HQ,31/Mar/2015 ,265000-IT & Telecommunications,NZ900-Finance & Corporate Services,SOPRA STERIA LTD,6920,"906,969.82 ",OMNI - End User Computing Monthly Charge
Ministry of Justice,MoJ HQ,31/Mar/2015 ,265000-IT & Telecommunications,NZ900-Finance & Corporate Services,SOPRA STERIA LTD,6923,"939,881.92 ",OMNI - Network Monthly Charge
Ministry of Justice,MoJ HQ,26/Mar/2015 ,265000-IT & Telecommunications,NZ900-Finance & Corporate Services,SOPRA STERIA LTD,1158523,"242,700.00 ",Criminal Justice Secure Email Applications Maintenance and Support
Ministry of Justice,MoJ HQ,31/Mar/2015 ,512000-Intangible GBV - Additions,NZ900-Finance & Corporate Services,SOPRA STERIA LTD,1158665,"31,854.59 ",Transforming Rehabilitation program
Ministry of Justice,MoJ HQ,19/Mar/2015 ,512000-Intangible GBV - Additions,NZ900-Finance & Corporate Services,SOPRA STERIA LTD,1157941,"43,370.72 ",Transforming Rehabilitation program
Ministry of Justice,MoJ HQ,12/Mar/2015 ,512000-Intangible GBV - Additions,NZ900-Finance & Corporate Services,SOPRA STERIA LTD,1157055,"11,246.06 ",Transforming Rehabilitation program
Ministry of Justice,MoJ HQ,12/Mar/2015 ,512000-Intangible GBV - Additions,NZ900-Finance & Corporate Services,SOPRA STERIA LTD,1157055,"-11,246.06 ",Transforming Rehabilitation program
Ministry of Justice,MoJ HQ,12/Mar/2015 ,512000-Intangible GBV - Additions,NZ900-Finance & Corporate Services,SOPRA STERIA LTD,1157055,"56,230.30 ",Transforming Rehabilitation program
Ministry of Justice,MoJ HQ,12/Mar/2015 ,512000-Intangible GBV - Additions,NZ900-Finance & Corporate Services,SOPRA STERIA LTD,1157055,"11,246.06 ",Transforming Rehabilitation program
Ministry of Justice,MoJ HQ,12/Mar/2015 ,512000-Intangible GBV - Additions,NZ900-Finance & Corporate Services,SOPRA STERIA LTD,1157055,"58,625.98 ",Transforming Rehabilitation program
Ministry of Justice,MoJ HQ,12/Mar/2015 ,512000-Intangible GBV - Additions,NZ900-Finance & Corporate Services,SOPRA STERIA LTD,1157055,"11,725.20 ",Transforming Rehabilitation program
Ministry of Justice,MoJ HQ,31/Mar/2015 ,512000-Intangible GBV - Additions,NZ900-Finance & Corporate Services,SOPRA STERIA LTD,1158665,"110,520.70 ",Transforming Rehabilitation program
Ministry of Justice,MoJ HQ,26/Mar/2015 ,512000-Intangible GBV - Additions,NZ900-Finance & Corporate Services,SOPRA STERIA LTD,1158523,"256,250.74 ",Transforming Rehabilitation program
Ministry of Justice,MoJ HQ,26/Mar/2015 ,512000-Intangible GBV - Additions,NZ900-Finance & Corporate Services,SOPRA STERIA LTD,1158523,"767,262.29 ",Transforming Rehabilitation program
Ministry of Justice,MoJ HQ,12/Mar/2015 ,265000-IT & Telecommunications,NZ900-Finance & Corporate Services,SOPRA STERIA LTD,1157055,"23,044.97 ",Generic Appeals Processing System -  monthly support costs
Ministry of Justice,MoJ HQ,12/Mar/2015 ,265000-IT & Telecommunications,NZ900-Finance & Corporate Services,SOPRA STERIA LTD,1157055,"4,608.99 ",Generic Appeals Processing System -  monthly support costs
Ministry of Justice,MoJ HQ,31/Mar/2015 ,265000-IT & Telecommunications,LZ600-Transforming Justice,SOPRA STERIA LTD,1158665,"23,122.31 ",Data migration services
Ministry of Justice,MoJ HQ,26/Mar/2015 ,265000-IT & Telecommunications,LZ600-Transforming Justice,SOPRA STERIA LTD,1158523,"75,640.00 ",Transforming Rehabilitation Service Management Uplift 
Ministry of Justice,MoJ HQ,30/Mar/2015 ,265000-IT & Telecommunications,NZ900-Finance & Corporate Services,SQUIZ UK LTD,1158630,"30,000.00 ",Provision of IT Peripherals and individually ordered software and equipment
Ministry of Justice,MoJ HQ,30/Mar/2015 ,263000-Other Contracted Out Services,NX900-MOJ Shared Services,SSCL (SHARED SERVICES CONNECTED LTD),1158631,"116,800.00 ",Shared services connected Ltd delivery of Noms switchboard service
Ministry of Justice,MoJ HQ,30/Mar/2015 ,263000-Other Contracted Out Services,NX900-MOJ Shared Services,SSCL (SHARED SERVICES CONNECTED LTD),1158631,"116,800.00 ",Shared services connected Ltd delivery of Noms switchboard service
Ministry of Justice,MoJ HQ,30/Mar/2015 ,263000-Other Contracted Out Services,NX900-MOJ Shared Services,SSCL (SHARED SERVICES CONNECTED LTD),1158631,"116,800.00 ",Shared services connected Ltd delivery of Noms switchboard service
Ministry of Justice,MoJ HQ,23/Mar/2015 ,263000-Other Contracted Out Services,NX900-MOJ Shared Services,SSCL (SHARED SERVICES CONNECTED LTD),1158288,"116,800.00 ",Shared services connected Ltd delivery of Noms switchboard service
Ministry of Justice,MoJ HQ,31/Mar/2015 ,263000-Other Contracted Out Services,NX900-MOJ Shared Services,SSCL (SHARED SERVICES CONNECTED LTD),6927,"230,768.92 ",Shared services connected Ltd Service charges for shared services provided
Ministry of Justice,MoJ HQ,31/Mar/2015 ,263000-Other Contracted Out Services,NX900-MOJ Shared Services,SSCL (SHARED SERVICES CONNECTED LTD),6926,"327,974.58 ",Shared services connected Ltd Service charges for shared services provided
Ministry of Justice,MoJ HQ,31/Mar/2015 ,263000-Other Contracted Out Services,NX900-MOJ Shared Services,SSCL (SHARED SERVICES CONNECTED LTD),6925,"3,576,756.67 ",Shared services connected Ltd Service charges for shared services provided
Ministry of Justice,MoJ HQ,42089,263000-Other Contracted Out Services,LZ600-Transforming Justice,STAFFORDSHIRE COUNTY COUNCIL,1158528,"224,482.80 ","Provision of the Claims Management Regulation Compliance Office under contract to the MoJ for February 2015. Costs are recovered in full from fees charged to regulated businesses, so is cost revenue neutral to MoJ."
Ministry of Justice,MoJ HQ,42089,263000-Other Contracted Out Services,LZ600-Transforming Justice,STAFFORDSHIRE COUNTY COUNCIL,1158528,"44,896.56 ","Provision of the Claims Management Regulation Compliance Office under contract to the MoJ for February 2015. Costs are recovered in full from fees charged to regulated businesses, so is cost revenue neutral to MoJ."
Ministry of Justice,MoJ HQ,42094,263000-Other Contracted Out Services,RC999-Criminal Justice Group - OMS,STC (MILTON KEYNES) LTD,6928,"1,314,268.96 ",Operation costs for Oakhill Secure Training Centre for young people in custody
Ministry of Justice,MoJ HQ,12/Mar/2015 ,246000-Current Grants,RB999-JPG - CJRD,SURVIVORS UK,1157063,"72,782.73 ",Male Rape Support Fund third installment for the provision of a website
Ministry of Justice,MoJ HQ,12/Mar/2015 ,264000-Consultancy,LZ600-Transforming Justice,TAMESIDE METROPOLITAN BOROUGH,1157067,"189,762.00 ",Transfer of probation liabilities and assets from 35 LGPS Admin Authorities to the Greater Manchester Pension Fund
Ministry of Justice,MoJ HQ,12/Mar/2015 ,245000-Grants in Aid to NDPBs,KY600-Access to Justice,THE PAROLE BOARD,5566,"1,300,000.00 ",Monthly Grant in Aid to Parole Board (March 15)
Ministry of Justice,MoJ HQ,42082,223000-Other Expenditure,NZ900-Finance & Corporate Services,TNS BMRB,1157993,"157,412.00 ",Milestone payment for Civil Court Users Survey
Ministry of Justice,MoJ HQ,42082,223000-Other Expenditure,NZ900-Finance & Corporate Services,TNS BMRB,1157993,"30,218.00 ",Milestone payment for Civil Court Users Survey
Ministry of Justice,MoJ HQ,05/Mar/2015 ,223000-Other Expenditure,LZ600-Transforming Justice,TNT UK LTD,1156408,"68,759.47 ",Monthly 'storage' and 'activity' costs for paper records stored by TNT on MoJ's behalf at its secure repositories
Ministry of Justice,MoJ HQ,31/Mar/2015 ,223000-Other Expenditure,LZ600-Transforming Justice,TNT UK LTD,1158666,"66,472.05 ",Monthly 'storage' and 'activity' costs for paper records stored by TNT on MoJ's behalf at its secure repositories.
Ministry of Justice,MoJ HQ,12/Mar/2015 ,223000-Other Expenditure,LZ600-Transforming Justice,TNT UK LTD,1157085,"67,468.80 ",Special Projects undertaken by TNT at MoJ's request to securely destroy records 
Ministry of Justice,MoJ HQ,02/Mar/2015 ,223000-Other Expenditure,LZ600-Transforming Justice,TNT UK LTD,1156112,"163,001.89 ",Special Projects undertaken by TNT at MoJ's request to securely destroy records 
Ministry of Justice,MoJ HQ,12/Mar/2015 ,223000-Other Expenditure,LZ600-Transforming Justice,TNT UK LTD,1157085,"167,971.60 ",Special Projects undertaken by TNT at MoJ's request to securely destroy records 
Ministry of Justice,MoJ HQ,31/Mar/2015 ,223000-Other Expenditure,LZ600-Transforming Justice,TNT UK LTD,1158666,"269,550.64 ",Special Projects undertaken by TNT at MoJ's request to securely destroy records 
Ministry of Justice,MoJ HQ,30/Mar/2015 ,512000-Intangible GBV - Additions,NZ900-Finance & Corporate Services,TRIAD GROUP PLC,1158633,"22,853.25 ",Common Platform prog (creating unified common IT platform in HMCTS) -Transition Syncronisation
Ministry of Justice,MoJ HQ,30/Mar/2015 ,512000-Intangible GBV - Additions,NZ900-Finance & Corporate Services,TRIAD GROUP PLC,1158633,"4,570.65 ",Common Platform prog (creating unified common IT platform in HMCTS) -Transition Syncronisation
Ministry of Justice,MoJ HQ,31/Mar/2015 ,512000-Intangible GBV - Additions,NZ900-Finance & Corporate Services,TRIAD GROUP PLC,1158667,"26,244.68 ",Common Platform prog (creating unified common IT platform in HMCTS)  - Mag. Court Rota 
Ministry of Justice,MoJ HQ,02/Mar/2015 ,512000-Intangible GBV - Additions,NZ900-Finance & Corporate Services,TRIAD GROUP PLC,1156114,"26,629.49 ",Common Platform prog (creating unified common IT platform in HMCTS)  - Mag. Court Rota 
Ministry of Justice,MoJ HQ,12/Mar/2015 ,512000-Intangible GBV - Additions,NZ900-Finance & Corporate Services,TRIAD GROUP PLC,1157088,"32,379.00 ",Common Platform prog (creating unified common IT platform in HMCTS)  - Concept Court
Ministry of Justice,MoJ HQ,02/Mar/2015 ,512000-Intangible GBV - Additions,NZ900-Finance & Corporate Services,TRIAD GROUP PLC,1156114,"53,499.54 ",Common Platform prog (creating unified common IT platform in HMCTS) 
Ministry of Justice,MoJ HQ,26/Mar/2015 ,512000-Intangible GBV - Additions,NZ900-Finance & Corporate Services,TRIAD GROUP PLC,1158547,"57,627.38 ",Common Platform prog (creating unified common IT platform in HMCTS) 
Ministry of Justice,MoJ HQ,31/Mar/2015 ,512000-Intangible GBV - Additions,NZ900-Finance & Corporate Services,TRIAD GROUP PLC,1158667,"122,625.54 ",Common Platform prog (creating unified common IT platform in HMCTS) - Digital Repository
Ministry of Justice,MoJ HQ,30/Mar/2015 ,223000-Other Expenditure,NZ406-Strategic Estates Feeder,TRIUMPH FURNITURE LTD,1158634,0.02 ,"Furniture Order 1 (LAA, OMPPG, 6C & T)"
Ministry of Justice,MoJ HQ,30/Mar/2015 ,223000-Other Expenditure,NZ406-Strategic Estates Feeder,TRIUMPH FURNITURE LTD,1158634,"44,327.41 ","Furniture Order 1 (LAA, OMPPG, 6C & T)"
Ministry of Justice,MoJ HQ,30/Mar/2015 ,223000-Other Expenditure,NZ406-Strategic Estates Feeder,TRIUMPH FURNITURE LTD,1158634,"8,865.48 ","Furniture Order 1 (LAA, OMPPG, 6C & T)"
Ministry of Justice,MoJ HQ,26/Mar/2015 ,265000-IT & Telecommunications,NZ900-Finance & Corporate Services,TRUSTMARQUE SOLUTIONS LTD,1158548,"49,492.60 ",TW3: online tools to support collaboration and new ways of working
Ministry of Justice,MoJ HQ,30/Mar/2015 ,265000-IT & Telecommunications,NZ900-Finance & Corporate Services,TRUSTMARQUE SOLUTIONS LTD,1158635,"33,704.52 ",Postcode addressing service software license
Ministry of Justice,MoJ HQ,30/Mar/2015 ,265000-IT & Telecommunications,NZ900-Finance & Corporate Services,TRUSTMARQUE SOLUTIONS LTD,1158635,"6,740.90 ",Postcode addressing service software license
Ministry of Justice,MoJ HQ,30/Mar/2015 ,265000-IT & Telecommunications,NZ900-Finance & Corporate Services,TRUSTMARQUE SOLUTIONS LTD,1158635,"44,970.24 ",File and Print rendering Licence for HMCTS
Ministry of Justice,MoJ HQ,30/Mar/2015 ,265000-IT & Telecommunications,NZ900-Finance & Corporate Services,TRUSTMARQUE SOLUTIONS LTD,1158635,"8,994.05 ",File and Print rendering Licence for HMCTS
Ministry of Justice,MoJ HQ,23/Mar/2015 ,264000-Consultancy,NZ406-Strategic Estates Feeder,TURNER & TOWNSEND PROJECT MANAGEMENT,1158314,"29,098.76 ",Project management services relating to the The way we work (TW3 project) at 102 Petty France.
Ministry of Justice,MoJ HQ,26/Mar/2015 ,212001-Agency staff,NZ900-Finance & Corporate Services,VIRTRIUM LTD,1158554,"62,600.00 ",Contractors required to assist with Cost Reviews
Ministry of Justice,MoJ HQ,26/Mar/2015 ,212001-Agency staff,NZ900-Finance & Corporate Services,VIRTRIUM LTD,1158554,"12,520.00 ",Contractors required to assist with Cost Reviews
Ministry of Justice,MoJ HQ,31/Mar/2015 ,265000-IT & Telecommunications,NZ900-Finance & Corporate Services,VODAFONE CORPORATE LTD,1158668,"199,051.76 ",Voice and Video Integration Contract Milestone 
Ministry of Justice,MoJ HQ,42082,265000-IT & Telecommunications,QY200-OU10 Billback,VODAFONE CORPORATE LTD,1158012,-0.01 ,Provision of mobile phones � service and usage charges - February 2015
Ministry of Justice,MoJ HQ,42082,265000-IT & Telecommunications,QY200-OU10 Billback,VODAFONE CORPORATE LTD,1158012,"28,211.33 ",Provision of mobile phones � service and usage charges - February 2015
Ministry of Justice,MoJ HQ,42082,265000-IT & Telecommunications,QY200-OU10 Billback,VODAFONE CORPORATE LTD,1158012,"5,642.27 ",Provision of mobile phones � service and usage charges - February 2015
Ministry of Justice,MoJ HQ,42082,265000-IT & Telecommunications,QY200-OU10 Billback,VODAFONE CORPORATE LTD,1158012,360.49 ,Provision of mobile phones � service and usage charges - February 2015
Ministry of Justice,MoJ HQ,30/Mar/2015 ,265000-IT & Telecommunications,NZ900-Finance & Corporate Services,VODAFONE LTD (RETAIL),1158636,"22,612.96 ",Prison Court Video Links -  Call Launching Service
Ministry of Justice,MoJ HQ,30/Mar/2015 ,265000-IT & Telecommunications,NZ900-Finance & Corporate Services,VODAFONE LTD (RETAIL),1158636,"4,522.59 ",Prison Court Video Links -  Call Launching Service
Ministry of Justice,MoJ HQ,30/Mar/2015 ,265000-IT & Telecommunications,NZ900-Finance & Corporate Services,VODAFONE LTD (RETAIL),1158636,"26,226.66 ",WAN/LAN Servcies in Crown Courts
Ministry of Justice,MoJ HQ,30/Mar/2015 ,265000-IT & Telecommunications,NZ900-Finance & Corporate Services,VODAFONE LTD (RETAIL),1158636,"5,245.33 ",WAN/LAN Servcies in Crown Courts
Ministry of Justice,MoJ HQ,30/Mar/2015 ,265000-IT & Telecommunications,NZ900-Finance & Corporate Services,VODAFONE LTD (RETAIL),1158636,"26,226.66 ",WAN/LAN Servcies in Crown Courts
Ministry of Justice,MoJ HQ,30/Mar/2015 ,265000-IT & Telecommunications,NZ900-Finance & Corporate Services,VODAFONE LTD (RETAIL),1158636,"5,245.33 ",WAN/LAN Servcies in Crown Courts
Ministry of Justice,MoJ HQ,30/Mar/2015 ,265000-IT & Telecommunications,NZ900-Finance & Corporate Services,VODAFONE LTD (RETAIL),1158636,"26,226.66 ",WAN/LAN Servcies in Crown Courts
Ministry of Justice,MoJ HQ,30/Mar/2015 ,265000-IT & Telecommunications,NZ900-Finance & Corporate Services,VODAFONE LTD (RETAIL),1158636,"5,245.33 ",WAN/LAN Servcies in Crown Courts
Ministry of Justice,MoJ HQ,30/Mar/2015 ,265000-IT & Telecommunications,NZ900-Finance & Corporate Services,VODAFONE LTD (RETAIL),1158636,"26,226.66 ",WAN/LAN Servcies in Crown Courts
Ministry of Justice,MoJ HQ,30/Mar/2015 ,265000-IT & Telecommunications,NZ900-Finance & Corporate Services,VODAFONE LTD (RETAIL),1158636,"5,245.33 ",WAN/LAN Servcies in Crown Courts
Ministry of Justice,MoJ HQ,30/Mar/2015 ,265000-IT & Telecommunications,NZ900-Finance & Corporate Services,VODAFONE LTD (RETAIL),1158636,"26,226.66 ",WAN/LAN Servcies in Crown Courts
Ministry of Justice,MoJ HQ,30/Mar/2015 ,265000-IT & Telecommunications,NZ900-Finance & Corporate Services,VODAFONE LTD (RETAIL),1158636,"5,245.33 ",WAN/LAN Servcies in Crown Courts
Ministry of Justice,MoJ HQ,30/Mar/2015 ,265000-IT & Telecommunications,NZ900-Finance & Corporate Services,VODAFONE LTD (RETAIL),1158636,"26,226.66 ",WAN/LAN Servcies in Crown Courts
Ministry of Justice,MoJ HQ,30/Mar/2015 ,265000-IT & Telecommunications,NZ900-Finance & Corporate Services,VODAFONE LTD (RETAIL),1158636,"5,245.33 ",WAN/LAN Servcies in Crown Courts
Ministry of Justice,MoJ HQ,30/Mar/2015 ,265000-IT & Telecommunications,NZ900-Finance & Corporate Services,VODAFONE LTD FORMERLY CABLE & WIRELESS UK,1158637,"75,114.49 ","Voice, Video and Integration Costs"
Ministry of Justice,MoJ HQ,30/Mar/2015 ,265000-IT & Telecommunications,NZ900-Finance & Corporate Services,VODAFONE LTD FORMERLY CABLE & WIRELESS UK,1158637,"15,022.90 ","Voice, Video and Integration Costs"
Ministry of Justice,MoJ HQ,31/Mar/2015 ,265000-IT & Telecommunications,NZ900-Finance & Corporate Services,VODAFONE LTD FORMERLY CABLE & WIRELESS UK,1158669,"334,072.91 ","Voice, Video and Integration Costs"
Ministry of Justice,MoJ HQ,23/Mar/2015 ,224000-Staff travel and other,OZ501-HRD Feeder,XEXEC LTD,1158339,"-1,636.46 ",MoJ wide R&R Voucher scheme 
Ministry of Justice,MoJ HQ,23/Mar/2015 ,224000-Staff travel and other,OZ501-HRD Feeder,XEXEC LTD,1158339,"12,527.65 ",MoJ wide R&R Voucher scheme 
Ministry of Justice,MoJ HQ,23/Mar/2015 ,224000-Staff travel and other,OZ501-HRD Feeder,XEXEC LTD,1158339,"-12,527.65 ",MoJ wide R&R Voucher scheme 
Ministry of Justice,MoJ HQ,23/Mar/2015 ,224000-Staff travel and other,OZ501-HRD Feeder,XEXEC LTD,1158339,"22,157.70 ",MoJ wide R&R Voucher scheme 
Ministry of Justice,MoJ HQ,23/Mar/2015 ,224000-Staff travel and other,OZ501-HRD Feeder,XEXEC LTD,1158339,"40,480.55 ",MoJ wide R&R Voucher scheme 
Ministry of Justice,MoJ HQ,23/Mar/2015 ,224000-Staff travel and other,OZ501-HRD Feeder,XEXEC LTD,1158339,"8,096.11 ",MoJ wide R&R Voucher scheme 
Ministry of Justice,MoJ HQ,05/Mar/2015 ,265000-IT & Telecommunications,RC999-Criminal Justice Group - OMS,XMA LTD,1156435,"30,159.50 ",IT equipment and licences for access to Virtual Campus across all Young Offender Institutions 
Ministry of Justice,MoJ HQ,06/Mar/2015 ,512000-Intangible GBV - Additions,NZ900-Finance & Corporate Services,YOUTH JUSTICE BOARD FOR ENGLAND & WALES,5547,"35,193.00 ",Youth Justice Board - Carework AssetPlus
Ministry of Justice,MoJ HQ,06/Mar/2015 ,512000-Intangible GBV - Additions,NZ900-Finance & Corporate Services,YOUTH JUSTICE BOARD FOR ENGLAND & WALES,5546,"39,950.00 ",Youth Justice Board - Carework AssetPlus
Ministry of Justice,MoJ HQ,06/Mar/2015 ,512000-Intangible GBV - Additions,NZ900-Finance & Corporate Services,YOUTH JUSTICE BOARD FOR ENGLAND & WALES,5548,"268,639.00 ",Youth Justice Board - Carework AssetPlus
Ministry of Justice,MoJ HQ,25/Mar/2015 ,245000-Grants in Aid to NDPBs,RC999-Criminal Justice Group - OMS,YOUTH JUSTICE BOARD FOR ENGLAND & WALES,5676,"10,000,000.00 ",Monthly Grant in Aid to Youth Justice Board (March 15)
Ministry of Justice,MoJ HQ,30/Mar/2015 ,245000-Grants in Aid to NDPBs,RC999-Criminal Justice Group - OMS,YOUTH JUSTICE BOARD FOR ENGLAND & WALES,5686,"12,064,000.00 ",Monthly Grant in Aid to Youth Justice Board (March 15)
